{"text_format":"1","workbook":"xlsx","n_sheets":11,"sheets":["1","Data","Shapes","Temp","viz","viz2","Missing","Colors","vp","Dis","Ivls"],"not_rendered":{"charts":0,"images":0,"macros":1,"external_links":0,"defined_names":2,"comments":3,"pivot_tables":1},"unopened":[],"bounds":{"document_bytes":16777216,"sheet_cells":100000,"rows_first":2000,"rows_last":500,"rows_between":2000,"halvings":0,"cell_chars":16384,"cell_head_chars":4096},"cells_cut":0,"cells_raw":0,"read":"whole","date_system":"1900"}

{"sheet":"1","index":0,"n_rows":247,"n_cols":25,"rows_kept":247,"cut":false,"hidden":false,"merged":[[0,5,0,12],[91,5,91,6],[84,5,84,6],[83,5,83,6],[85,5,85,6],[86,5,86,6],[89,5,89,6],[88,5,88,6],[87,5,87,6],[90,5,90,6],[26,0,138,0],[21,1,25,1],[1,0,25,0],[176,1,181,1],[182,1,188,1],[139,0,225,0],[83,1,91,1],[192,1,204,1],[205,1,219,1],[189,1,191,1],[1,1,20,1],[220,1,225,1],[156,1,175,1],[141,1,155,1],[27,1,36,1],[37,1,44,1],[45,1,63,1],[64,1,82,1],[128,1,138,1],[139,1,140,1],[117,1,127,1],[92,1,109,1],[110,1,116,1]]}
["CL","Group","Rule","Spec","Voice","Subrules",null,null,null,null,null,null,null,"Paragraph",null,"Comment",null,"IDs"]
["Rhythm","Rhythm","Beginning is non-standard",null,null,"1/8 note",null,null,null,null,null,null,null,18,null,null,null,230]
[null,null,"Misuse of rest",null,null,"rest inside",null,null,null,null,null,null,null,18,null,null,null,517]
[null,null,"Misuse of rest",null,null,"wrong starting rest","late entrance",null,null,null,null,null,null,18,null,"This rule is ignored if there is no cantus firmus",null,138,527]
[null,null,"Missing rest",null,null,"/no starting rest",null,null,null,null,null,null,null,18,null,"This rule is ignored if there is no cantus firmus",null,237]
[null,null,"Simultaneous entries of voices",null,null,"/simultaneous",null,null,null,null,null,null,null,18,null,"This rule is ignored if there is no cantus firmus",null,530]
[null,null,"Same rhythm in adjacent measures",null,null,"/same",null,null,null,null,null,null,null,23,null,null,null,247]
[null,null,"Identical rhythm in two parts",null,null,"/same",null,null,null,null,null,null,null,23,null,null,null,549]
[null,null,"Identical rhythm in all parts",null,null,"/same",null,null,null,null,null,null,null,23,null,"For any species except species 1",null,215]
[null,null,"Non-permitted rhythm",5,null,"1/2. downbeat","1/2. upbeat","1/4 syncope",null,null,null,null,null,21,null,"For species 5",null,233,234,235]
[null,null,"Non-permitted rhythm",null,null,"rhythm stagnation","long inside","full-measure note inside",null,null,null,null,null,17,null,null,null,236,160,266]
[null,null,"Wrong usage of eighth notes",5,null,"1st beat","2nd beat","3rd beat","4th beat","isolated","1/8 syncope",">2 x 1/8","leap",21,null,null,null,226,227,228,229,231,232,255,88]
[null,null,"Anapaest",5,null,"tie forward","inside",null,null,null,null,null,null,21,null,"1/2 after 1/4 or 1/8 in measure",null,239,240]
[null,null,"Wrong note value for this species",null,null,"/value",null,null,null,null,null,null,null,17,null,"Please see link to table with allowed note values near this mistake",null,514]
[null,null,"Wrong time signature for this species",null,null,"/measure len",null,null,null,null,null,null,null,17,null,null,null,525]
[null,null,"Wrong positioning of note for this species",12340,null,"/position",null,null,null,null,null,null,null,17,null,"Please see link to table with allowed positionings of notes near this mistake",null,515]
[null,null,"Note lasts for too many measures",null,null,">2",null,null,null,null,null,null,null,17,null,null,null,41]
[null,null,"The length of last note is not full measure",1230,null,"/not full measure",null,null,null,null,null,null,null,19,null,null,null,306]
[null,null,"Wrong suspension rhythm",null,null,"sus wrong length","prep < sus","prep wrong length",null,null,null,null,null,63,null,"Suspension preparation and suspension",null,244,427,274]
[null,null,"Need more suspensions",null,null,"each 3 meas.",null,null,null,null,null,null,null,null,null,null,null,341]
[null,null,"Too many notes in one measure",5,null,"5 notes after sus.","5 notes without sus.",">5 notes",null,null,null,null,null,21,null,null,null,301,245,246]
[null,"Repeats and ties","Note repeat",null,null,"cantus",":inside measure",null,null,null,null,null,null,21,null,null,null,30,516]
[null,null,"Notes repeat in all parts",1,null,"/multivoice",null,null,null,null,null,null,null,31,null,null,null,557]
[null,null,"Note is repeated: in 10 notes",10,null,"once","2 times",">2 times",null,null,null,null,null,31,null,"Note repeat happens several times",null,93,94,95]
[null,null,"Note repeat",2345,null,"/any",null,null,null,null,null,null,null,31,null,"Note is repeated",null,261]
[null,null,"Frequent interruption of syncopation: within 10 notes",4,null,"once","2 times",">2 times",null,null,null,null,null,17,null,"Except interruption of syncopation between penultimate and last measure",null,188,189,190]
["Melody","Border","Leading tone is unresolved",12345,null,"/unresolved",null,null,null,null,null,null,null,6,null,null,null,197]
[null,"Compensated leap","8ve compensated only to 4th",null,null,"8ve",null,null,null,null,null,null,null,25,null,null,null,304]
[null,null,"Uncompensated leap: compensation deviation to 2nd",12340,null,"3rd","4th","5th","6th","8ve","late >3",">5th long",null,25,null,"Compensation can be deviated one 2nd interval above last leap note",null,100,101,102,103,104,191,386]
[null,null,"Uncompensated leap: compensation deviation to 2nd",5,null,"3rd","4th","5th","6th","8ve","late >3",">5th long",null,25,null,"Compensation can be deviated one 2nd interval above last leap note",null,100,101,102,103,104,191,386]
[null,null,"Uncompensated leap: compensation deviation to 3rd",140,null,"3rd","4th","5th","6th","8ve","late >3",null,null,25,null,"Compensation can be deviated one 3rd interval above last leap note",null,105,106,107,108,109,192]
[null,null,"Uncompensated leap: compensation deviation to 3rd",235,null,"3rd","4th","5th","6th","8ve","late >3",null,null,25,null,"Compensation can be deviated one 3rd interval above last leap note",null,105,106,107,108,109,192]
[null,null,"Compensation after 3rd",null,null,"3rd","4th","5th","6th","8ve",null,null,null,25,null,"Compensation has a gap of one 3rd below last leap note",null,110,111,112,113,114]
[null,null,"Compensated to 3rd prepared",null,null,"-","4th","5th","6th","8ve",null,null,null,25,null,"Prepared within 5 notes",null,115,116,117,118,119]
[null,null,"Compensated to 3rd",null,null,"-","4th","5th","6th","8ve",null,null,null,25,null,null,null,120,121,122,123,124]
[null,null,"Aggregated compensation+precompensation to 3rd",5,null,"-","-","5th","6th","8ve",null,null,null,25,null,"Distance between precompensation and compensation is not greater than a 3rd",null,125,126,127,128,129]
[null,null,"C5P last 3 measures, 8 notes",null,null,"3rd","4th","5th","6th","8ve",null,null,null,25,null,"Compensated to 5th, precompensated within 6 notes",null,130,131,132,133,134]
[null,"Uncompensated leap","Uncompensated leap: precompensated",12350,null,"3rd","4th","5th","6th","8ve",null,null,null,25,null,null,null,140,141,142,143,144]
[null,null,"Uncompensated leap: precompensated",4,null,"3rd","4th","5th","6th","8ve",null,null,null,25,null,null,null,140,141,142,143,144]
[null,null,"Precompensated last 2 leaps",null,null,"3rd","4th","5th","6th","8ve",null,null,null,25,null,"Leap within last XX notes in cantus/counterpoint",null,145,146,147,148,149]
[null,null,"Uncompensated child leap",null,null,"3rd","4th","5th","6th","8ve",null,null,null,25,null,"After longer leap or before longer/same leap.",null,203,204,205,206,207]
[null,null,"Uncompensated leap in last 2 measures",null,null,"3rd","4th","5th","6th","8ve",null,null,null,25,null,"Leap between penpenultimate and penultimate measure is not included in this rule.",null,267,268,269,270,271]
[null,null,"Uncompensated leap",1230,null,"3rd","4th","5th","6th","8ve","border 4th",null,null,25,null,"If no other uncompensated rules worked.",null,277,278,279,280,281,1]
[null,null,"Uncompensated leap",4,null,"3rd","4th","5th","6th","8ve","border 4th",null,null,25,null,"If no other uncompensated rules worked.",null,277,278,279,280,281,1]
[null,null,"Uncompensated leap",5,null,"3rd","4th","5th","6th","8ve","border 4th",null,null,25,null,"If no other uncompensated rules worked.",null,277,278,279,280,281,1]
[null,"Change of melodic direction around leap","No change of direction after the leap: close + neigh",1,null,"3rd","4th","5th","6th","8ve",null,null,null,25,null,"There is immediate melody direction change before leap. After leap there is neighbor tone, then ending leap note repeats and then there is movement inside leap.",null,296,297,298,299,300]
[null,null,"No change of direction after the leap: close + 1skip",1,null,"3rd","4th","5th","6th","8ve",null,null,null,25,null,"There is immediate melody direction change before leap, but after leap melody direction changes only after one note, which goes in the same direction as leap",null,315,316,317,318,319]
[null,null,"No change of direction after the leap: close + 2skip",1,null,"3rd","4th","5th","6th","8ve",null,null,null,25,null,"There is immediate melody direction change before leap, but after leap melody direction changes only after two notes, which go in the same direction as leap",null,327,328,329,330,331]
[null,null,"No change of direction after the leap: close + >2skip",1,null,"3rd","4th","5th","6th","8ve",null,null,null,25,null,"There is immediate melody direction change before leap, but after leap melody direction changes after more than two notes, which go in the same direction as leap",null,336,337,338,339,340]
[null,null,"No change of direction before the leap: neigh + close",1,null,"3rd","4th","5th","6th","8ve",null,null,null,25,null,"There is immediate melody direction change after leap. Before leap there is neighbor tone, then ending leap note repeats and then there is movement inside leap.",null,351,352,353,354,355]
[null,null,"No change of direction before the leap: 1skip + close",1,null,"3rd","4th","5th","6th","8ve",null,null,null,25,null,"There is immediate melody direction change after leap, but before leap melody direction changes after one note, which goes in the same direction as leap",null,389,390,391,392,393]
[null,null,"No change of direction before the leap: >1skip + close",1,null,"3rd","4th","5th","6th","8ve",null,null,null,25,null,"There is immediate melody direction change after leap, but before leap melody direction changes after more than one note, which go in the same direction as leap",null,394,395,396,397,398]
[null,null,"No change of direction before and after the leap: 1skip + 1skip",12350,null,"3rd","4th","5th","6th","8ve",null,null,null,25,null,"There is one note going in the same direction before and after leap",null,414,415,416,417,418]
[null,null,"No change of direction before and after the leap: 1skip + >1skip",12350,null,"3rd","4th","5th","6th","8ve",null,null,null,25,null,"There is one note going in the same direction before leap and more than one note going in the same direction after leap",null,421,422,423,424,425]
[null,null,"No change of direction before and after the leap: >1skip + 1skip",12350,null,"3rd","4th","5th","6th","8ve",null,null,null,25,null,"There is more than one note going in the same direction before leap and one note going in the same direction after leap",null,438,439,440,441,442]
[null,null,"No change of direction before and after the leap: >1skip + >1skip",12350,null,"3rd","4th","5th","6th","8ve",null,null,null,25,null,"There is more than one note going in the same direction before leap and more than one note going in the same direction after leap",null,443,444,445,446,447]
[null,null,"No change of direction before and after the leap: neigh + neigh",35,null,"3rd","4th","5th","6th","8ve",null,null,null,25,null,"Before and after leap there is neighbor tone, then ending leap note repeats and then there is movement inside leap.",null,448,449,450,451,452]
[null,null,"No change of direction before the leap between measures: 1skip + close",12350,null,"3rd","4th","5th","6th","8ve",null,null,null,26,null,"There is immediate melody direction change after leap, but before leap melody direction changes after one note, which goes in the same direction as leap (allowed between harmonies with same root except I or I6 -> I64, allowed between I64 -> V)",null,453,454,455,456,457]
[null,null,"No change of direction before the leap between measures: >1skip + close",12350,null,"3rd","4th","5th","6th","8ve",null,null,null,26,null,"There is immediate melody direction change after leap, but before leap melody direction changes after more than one note, which go in the same direction as leap (allowed between harmonies with same root except I or I6 -> I64, allowed between I64 -> V)",null,459,460,461,462,463]
[null,null,"No change of direction before the leap between measures: 1skip + 1skip",12350,null,"3rd","4th","5th","6th","8ve",null,null,null,26,null,"Turns around leap on measure border. There is one note going in the same direction before and after leap (allowed between harmonies with same root except I or I6 -> I64, allowed between I64 -> V)",null,464,465,466,467,468]
[null,null,"No change of direction before the leap between measures: 1skip + >1skip",12350,null,"3rd","4th","5th","6th","8ve",null,null,null,26,null,"Turns around leap on measure border. There is one note going in the same direction before leap and more than one note going in the same direction after leap (allowed between harmonies with same root except I or I6 -> I64, allowed between I64 -> V)",null,469,470,471,472,473]
[null,null,"No change of direction before the leap between measures: >1skip + 1skip",12350,null,"3rd","4th","5th","6th","8ve",null,null,null,26,null,"Turns around leap on measure border. There is more than one note going in the same direction before leap and one note going in the same direction after leap (allowed between harmonies with same root except I or I6 -> I64, allowed between I64 -> V)",null,474,475,476,477,478]
[null,null,"No change of direction before the leap between measures: >1skip + >1skip",12350,null,"3rd","4th","5th","6th","8ve",null,null,null,26,null,"Turns around leap on measure border. There is more than one note going in the same direction before leap and more than one note going in the same direction after leap (allowed between harmonies with same root except I or I6 -> I64, allowed between I64 -> V)",null,506,507,508,509,510]
[null,null,"Leap back",null,null,"<=6th",">6th","overflow",null,null,null,null,null,null,null,null,null,8,22,58]
[null,"Leaps","Non-permitted melodic interval: ascending",null,null,":m6",":maj6",":m7",":maj7",":8ve",":greater than 8ve",null,null,27,null,null,null,175,176,177,178,179,180]
[null,null,"Non-permitted melodic interval: descending",null,null,":m6",":maj6",":m7",":maj7",":8ve",":greater than 8ve",null,null,27,null,null,null,181,182,183,184,185,186]
[null,null,"Abuse of disjunct motion: within 9 notes",0,null,">7 leaps",">30 leaped",">8 leaps",">36 leaped",null,null,null,null,25,null,null,null,493,494,495,496]
[null,null,"Abuse of disjunct motion: within 9 notes",1,null,">6 leaps",">30 leaped",">8 leaps",">36 leaped",null,null,null,null,25,null,null,null,493,494,495,496]
[null,null,"Abuse of disjunct motion: within 9 notes",2,null,">6 leaps",">22 leaped",">7 leaps",">30 leaped",null,null,null,null,25,null,null,null,493,494,495,496]
[null,null,"Abuse of disjunct motion: within 9 notes",3,null,">6 leaps",">22 leaped",">7 leaps",">30 leaped",null,null,null,null,25,null,null,null,493,494,495,496]
[null,null,"Abuse of disjunct motion: within 9 notes",4,null,">7 leaps",">30 leaped",">8 leaps",">36 leaped",null,null,null,null,25,null,null,null,493,494,495,496]
[null,null,"Abuse of disjunct motion: within 9 notes",5,null,">7 leaps",">30 leaped",">8 leaps",">36 leaped",null,null,null,null,25,null,null,null,493,494,495,496]
[null,null,"Abuse of disjunct motion: within 14 notes",0,null,">9 leaps",">40 leaped",">10 leaps",">46 leaped",null,null,null,null,25,null,null,null,497,498,499,500]
[null,null,"Abuse of disjunct motion: within 14 notes",1,null,">8 leaps",">40 leaped",">10 leaps",">46 leaped",null,null,null,null,25,null,null,null,497,498,499,500]
[null,null,"Abuse of disjunct motion: within 14 notes",2,null,">8 leaps",">32 leaped",">9 leaps",">34 leaped",null,null,null,null,25,null,null,null,497,498,499,500]
[null,null,"Abuse of disjunct motion: within 14 notes",3,null,">8 leaps",">32 leaped",">9 leaps",">34 leaped",null,null,null,null,25,null,null,null,497,498,499,500]
[null,null,"Abuse of disjunct motion: within 14 notes",4,null,">9 leaps",">40 leaped",">10 leaps",">46 leaped",null,null,null,null,25,null,null,null,497,498,499,500]
[null,null,"Abuse of disjunct motion: within 14 notes",5,null,">9 leaps",">40 leaped",">10 leaps",">46 leaped",null,null,null,null,25,null,null,null,497,498,499,500]
[null,null,"Consecutive leaps",230,null,3,"more than 3",null,null,null,null,null,null,25,null,"1x3rd ignored",null,501,502]
[null,null,"Consecutive leaps",14,null,3,"more than 3",null,null,null,null,null,null,25,null,"2x3rd ignored",null,501,502]
[null,null,"Consecutive leaps",5,null,4,"more than 4",null,null,null,null,null,null,25,null,"1x3rd ignored",null,501,502]
[null,null,"Consecutive unidirectional leaps",23,null,"Two 3rds","Three 3rds","Two >3rds",null,null,null,null,null,25,null,null,null,503,504,505]
[null,null,"Consecutive unidirectional leaps",4510,null,"Two 3rds","Three 3rds","Two >3rds",null,null,null,null,null,25,null,null,null,503,504,505]
[null,"Stepwise motion","Abuse of stepwise motion",0,null,">7 in any direction",null,null,null,null,null,null,null,24,null,"There are more than AA notes going stepwize in the same direction in this cantus firmus",null,302]
[null,null,"Abuse of stepwise motion",14,null,">10 in any direction",null,null,null,null,null,null,null,24,null,null,null,302]
[null,null,"Abuse of stepwise motion",2,null,">14 in any direction",null,null,null,null,null,null,null,24,null,null,null,302]
[null,null,"Abuse of stepwise motion",35,null,">14 in any direction",null,null,null,null,null,null,null,24,null,null,null,302]
[null,null,"Abuse of unidirectional stepwise motion",0,null,">4 in one direction",null,null,null,null,null,null,null,24,null,null,null,303]
[null,null,"Abuse of unidirectional stepwise motion",14,null,">7 in one direction",null,null,null,null,null,null,null,24,null,null,null,303]
[null,null,"Abuse of unidirectional stepwise motion",2,null,">7 in one direction",null,null,null,null,null,null,null,24,null,null,null,303]
[null,null,"Abuse of unidirectional stepwise motion",3,null,">9 in one direction",null,null,null,null,null,null,null,24,null,null,null,303]
[null,null,"Abuse of unidirectional stepwise motion",5,null,">7 in one direction",null,null,null,null,null,null,null,24,null,null,null,303]
[null,"Melodic repeats","Repetition - 2 notes are repeated: immediate",104,null,"uniform","same rhythm","any rhythm",null,null,null,null,null,32,null,"Two adjacent notes are immediately repeated",null,402,403,404]
[null,null,"Repetition - 2 notes are repeated: immediate",3,null,"uniform","same rhythm","any rhythm",null,null,null,null,null,32,null,"Two adjacent notes are immediately repeated",null,402,403,404]
[null,null,"Repetition - 2 notes are repeated: immediate",2,null,"uniform","same rhythm","any rhythm",null,null,null,null,null,32,null,"Two adjacent notes are immediately repeated",null,402,403,404]
[null,null,"Repetition - 2 notes are repeated: immediate IM",23,null,"uniform","same rhythm","any rhythm",null,null,null,null,null,32,null,"Two adjacent notes are immediately repeated inside one measure",null,411,412,413]
[null,null,"Repetition - 2 notes are repeated: immediate",5,null,"uniform","same rhythm","any rhythm",null,null,null,null,null,32,null,"Two adjacent notes are immediately repeated",null,402,403,404]
[null,null,"Repetition - 2 notes are repeated: immediate IM",5,null,"uniform","same rhythm","any rhythm",null,null,null,null,null,32,null,"Two adjacent notes are immediately repeated inside one measure",null,411,412,413]
[null,null,"Repetition - 3 notes are repeated 2 times",null,null,"adjacent","symmetric",null,null,null,null,null,null,32,null,"Repeat with the same rhythm (last note length is ignored)",null,311,405]
[null,null,"Repetition - 3 notes are repeated 3 times",null,null,"adjacent","symmetric",null,null,null,null,null,null,32,null,"Repeat with the same rhythm (last note length is ignored)",null,313,407]
[null,null,"Repetition - 4 notes are repeated 2 times",null,null,"adjacent","symmetric",null,null,null,null,null,null,32,null,"Repeat with the same rhythm (last note length is ignored)",null,312,406]
[null,null,"Repetition - 4 notes are repeated 3 times",null,null,"adjacent","symmetric",null,null,null,null,null,null,32,null,"Repeat with the same rhythm (last note length is ignored)",null,314,408]
[null,null,"Melodic climax",null,null,"early 50%","early <5","early <3","late 3",null,null,null,null,32,null,null,null,193,79,78,21]
[null,null,"Melodic climax is repeated",12345,null,"in upper part",null,null,null,null,null,null,null,32,null,null,null,12]
[null,null,"Melodic climax is repeated",5,null,"in non-upper part",null,null,null,null,null,null,null,32,null,null,null,305]
[null,null,"Frequent return to the tonic",12350,"EB","3 within 6","4 within 12",null,null,null,null,null,null,32,null,"More than AA tonic notes within BB adjacent notes",null,70,71]
[null,null,"Frequent return to the tonic",4,"EB","3 within 6","5 within 12",null,null,null,null,null,null,32,null,"More than AA tonic notes within BB adjacent notes",null,70,71]
[null,null,"Octave leap to the leading tone",null,null,"/LT 8ve leap",null,null,null,null,null,null,null,27,null,null,null,348]
[null,null,"Frequent return to the same note",null,null,">3 in 7 notes",">4 in 9 notes",null,null,null,null,null,null,32,null,"Same note repeats more than AA times within BB adjacent notes",null,10,39]
[null,null,"Notes stagnation",null,null,"5 notes <3 pitches","7 notes <4 pitches","17 notes <6 pitches",null,null,null,null,null,32,null,null,null,344,345,346]
[null,"Tritone","Tritone: adjacent",10,null,":resolved",":unresolved",null,null,null,null,null,null,27,null,"Melodic adjacent tritone",null,2,31]
[null,null,"Audible tritone: framed",10,null,":resolved",":unresolved",null,null,null,null,null,null,28,null,"Melodic tritone with one intermediate note, framed by two melody direction changes or leaps",null,371,372]
[null,null,"Tritone: adjacent",2345,null,":resolved",":unresolved",null,null,null,null,null,null,27,null,"Melodic adjacent tritone, not accented or framed",null,368,369]
[null,null,"Tritone: adjacent framed",2345,null,":resolved",":unresolved",null,null,null,null,null,null,27,null,"Melodic adjacent tritone, framed by two melody direction changes",null,365,366]
[null,null,"Tritone: adjacent accented",2345,null,":resolved",":unresolved",null,null,null,null,null,null,27,null,"Melodic adjacent tritone, last note is long or repeated",null,360,361]
[null,null,"Audible tritone: framed",2345,null,":resolved",":unresolved",null,null,null,null,null,null,28,null,"Tritone within measure with intermediate notes, framed by two melody direction changes",null,18,19]
[null,null,"Audible tritone: accented",2345,null,":resolved",":unresolved",null,null,null,null,null,null,28,null,"Tritone within measure with intermediate notes, last note is long or repeated",null,342,343]
[null,"Range","Skipped notes",null,null,1,">1",">1 joined",null,null,null,null,null,null,null,"Skipped notes that do not appear within this voice",null,67,68,69]
[null,null,"Out of vocal range",null,null,"/out of range",null,null,null,null,null,null,null,11,null,null,null,522]
[null,null,"Wrong order of vocal ranges",null,null,"/above higher",null,null,null,null,null,null,null,11,null,null,null,523]
[null,null,"Imbalance between vocal ranges",null,null,">7 quarters",">12 quarters",null,null,null,null,null,null,11,null,"One voice is in its highest third of range, while the other voice is in its lowest third range for AA quarters",null,524,526]
[null,null,"Stagnation",0,null,"5 notes <m3","7 notes <4th","11 notes <5th","15 notes <m6",null,null,null,null,32,null,null,null,434,435,436,437]
[null,null,"Stagnation",1,null,"5 notes <m3","7 notes <4th","11 notes <5th","15 notes <m6",null,null,null,null,32,null,null,null,434,435,436,437]
[null,null,"Stagnation",2,null,"5 notes <m3","8 notes <4th","11 notes <5th","17 notes <m6",null,null,null,null,32,null,null,null,434,435,436,437]
[null,null,"Stagnation",3,null,"5 notes <m3","9 notes <4th","12 notes <5th","19 notes <m6",null,null,null,null,32,null,null,null,434,435,436,437]
[null,null,"Stagnation",4,null,"5 notes <m3","7 notes <4th","11 notes <5th","15 notes <m6",null,null,null,null,32,null,null,null,434,435,436,437]
[null,null,"Stagnation",5,null,"5 notes <m3","9 notes <4th","14 notes <5th","19 notes <m6",null,null,null,null,32,null,null,null,434,435,436,437]
[null,null,"No melody development",null,null,"12 notes <12","15 notes <15",null,null,null,null,null,null,32,null,null,null,15,16]
[null,"Melodic minor","bVII note",null,null,":before the tonic","10 after VII#",null,null,null,null,null,null,34,null,null,null,74,200]
[null,null,"bVII note near VI# note",null,null,"4 notes before","4 notes after","immediate",null,null,null,null,null,34,null,null,null,349,350,273]
[null,null,"VI# note without close VII# note",null,null,"within 2 notes",null,null,null,null,null,null,null,34,null,"There is no VII# note before or after VI# chord tone in close proximity",null,199]
[null,null,"VI# should be surrounded by ascending stepwise motion",10,null,"/VI#",null,null,null,null,null,null,null,34,null,"Chord tone VI# is not surrounded by stepwise diatonic ascending movement",null,201]
[null,null,"VIIb should be surrounded by descending stepwise motion",10,null,"/VIIb",null,null,null,null,null,null,null,34,null,"Chord tone VII natural is not surrounded by stepwise diatonic descending movement",null,202]
[null,null,"VI# should be surrounded by ascending stepwise motion",2345,null,"/VI#",null,null,null,null,null,null,null,34,null,"Chord tone VI# is not surrounded by stepwise diatonic ascending movement",null,201]
[null,null,"VIIb should be surrounded by descending stepwise motion",2345,null,"/VIIb",null,null,null,null,null,null,null,34,null,"Chord tone VII natural is not surrounded by stepwise diatonic descending movement",null,202]
[null,null,"Note is not part of the mode",null,null,"/wrong alteration",null,null,null,null,null,null,null,27,null,null,null,521]
[null,null,"Chromaticism: close",null,null,"VI<->VI#","VII<->VII#",null,null,null,null,null,null,36,null,"These two notes are tightly close",null,152,153]
[null,null,"Chromaticism: far",null,null,"VI<->VI#","VII<->VII#",null,null,null,null,null,null,36,null,"These two notes are one note apart and are in neighboring harmonies",null,158,159]
[null,null,"Dim or aug melodic interval",null,null,"VI<->VII#","VI#<->III","VII#-III","III-VII#","III-VII#-I down",null,null,null,27,null,null,null,154,155,156,157,432]
["Harmony","Melodic minor","False chromatic relation: in outer voices",null,null,"VI<->VI#","VII<->VII#",null,null,null,null,null,null,36,null,"These two notes are harmonic tones in neighboring harmonies, but are in different voices",null,377,378]
[null,null,"False chromatic relation: in non-outer voices",null,null,"VI<->VI#","VII<->VII#",null,null,null,null,null,null,36,null,"These two notes are harmonic tones in neighboring harmonies, but are in different voices",null,164,165]
[null,"Harmony","Repeating functions in a row",null,null,">4 T",">4 D",">4 S",null,null,null,null,null,null,null,"More than AA consecutive harmonies all have this letter",null,17,428,429]
[null,null,"Missing functions in a row",null,null,">5 without T",">5 without D",">6 without S",null,null,null,null,null,null,null,"More than AA consecutive harmonies do not have this letter",null,20,430,431]
[null,null,"Too many tonic chords",null,null,">2 within 9 mea.",null,null,null,null,null,null,null,null,null,null,null,310]
[null,null,"Convoluted harmony",null,null,"/convoluted",null,null,null,null,null,null,null,58,null,"Cannot detect harmony",null,555]
[null,null,"Ambiguous harmony",null,null,"/ambiguous",null,null,null,null,null,null,null,58,null,"Chord should have at least one chord tone starting on the first beat of this chord",null,558]
[null,null,"Incomplete harmony",null,null,"any - no 3rd","penultimate",null,null,null,null,null,null,58,null,null,null,559,172]
[null,null,"Two consecutive incomplete harmonies",null,">3","/2",null,null,null,null,null,null,null,58,null,null,null,251]
[null,null,"Augmented chord",null,null,"DTIII",null,null,null,null,null,null,null,8,null,null,null,375]
[null,null,"Six-four chord",null,null,":suggestive",":audible","real",":in cadence",null,null,null,null,56,null,null,null,196,383,433,265]
[null,null,"7th chord",null,"<3","penultimate V7","/Other",null,null,null,null,null,null,8,null,null,null,272,194]
[null,null,"7th chord",null,">2","penultimate V7","/Other",null,null,null,null,null,null,8,null,null,null,272,194]
[null,null,"Cadential progression",null,null,"V-I",null,null,null,null,null,null,null,57,null,null,null,48]
[null,null,"Modulating progression",null,null,"IV-VII (m)","VII-III (m)","II-III (m)",null,null,null,null,null,60,null,null,null,308,309,139]
[null,null,"Harmonic progression",null,null,"non-ideal","bad","2 x bad","3 x bad",null,null,null,null,null,null,null,null,77,57,92,23]
[null,null,"Repeated harmony",null,null,"in changed inversion",":in same inversion",":three times",null,null,null,null,null,59,null,"Harmonic stagnation",null,288,99,321]
[null,"Perfect consonance","Doubling of a tritone note",null,null,"/doubling",null,null,null,null,null,null,null,52,null,null,null,222]
[null,null,"Doubling of leading-tone",null,"<5","end of harmony","start of harmony",null,null,null,null,null,null,52,null,null,null,324,198]
[null,null,"Doubling of leading-tone",null,">4EB","end of harmony","start of harmony",null,null,null,null,null,null,52,null,null,null,324,198]
[null,null,"Doubling of leading-tone",null,">4N","end of harmony","start of harmony",null,null,null,null,null,null,52,null,null,null,324,198]
[null,null,"Culmination on 5th: long downbeat",null,null,"/culmination",null,null,null,null,null,null,null,null,null,"Local culmination in upper voice within 4 measures in sp5. Sounds empty except last measure",null,325]
[null,null,"Culmination on 8ve / unison: long downbeat",null,null,"/culmination",null,null,null,null,null,null,null,null,null,"Local culmination in upper voice within 4 measures in sp5. Sounds empty except last measure",null,326]
[null,null,"Consecutive 5ths",null,null,"parallel",null,null,null,null,null,null,null,42,null,null,null,84]
[null,null,"Consecutive 5ths",null,"<6","contrary",null,null,null,null,null,null,null,42,null,null,null,85]
[null,null,"Consecutive 5ths",null,"6E","contrary",null,null,null,null,null,null,null,42,null,null,null,85]
[null,null,"Consecutive 8ves or unisons",null,null,"parallel",null,null,null,null,null,null,null,42,null,null,null,481]
[null,null,"Consecutive 8ves or unisons",null,"<6","contrary",null,null,null,null,null,null,null,42,null,null,null,482]
[null,null,"Consecutive 8ves or unisons",null,"6E","contrary",null,null,null,null,null,null,null,42,null,null,null,482]
[null,null,"Parallel 5ths: < measure apart",null,"<5","upbeat contrary","last contrary","non-chord","downbeat","sus harm","upbeat","different beats","2 oblique",43,null,"Two same non-close perfect consonances in neighboring measures less than one measure and whole note length apart",null,248,376,249,284,385,250,259,224]
[null,null,"Parallel 5ths: < measure apart",null,">4","upbeat contrary","last contrary","non-chord","downbeat","sus harm","upbeat","different beats","2 oblique",43,null,"Two same non-close perfect consonances in neighboring measures less than one measure and whole note length apart",null,248,376,249,284,385,250,259,224]
[null,null,"Parallel 8ves / unisons: < measure apart",null,"<5","upbeat contrary","last contrary","non-chord","downbeat","sus harm","upbeat","different beats","2 oblique",43,null,"Two same non-close perfect consonances in neighboring measures less than one measure and whole note length apart",null,484,485,488,490,491,492,260,225]
[null,null,"Parallel 8ves / unisons: < measure apart",null,">4","upbeat contrary","last contrary","non-chord","downbeat","sus harm","upbeat","different beats","2 oblique",43,null,"Two same non-close perfect consonances in neighboring measures less than one measure and whole note length apart",null,484,485,488,490,491,492,260,225]
[null,null,"Unison",null,null,":on downbeat",":follows m2",":follows M2",null,null,null,null,null,53,null,null,null,91,275,307]
[null,null,"Similar motion to 5th in outer voices between chords",null,null,"stepw. cadence","leap cadence","downbeat leap, not cadence","upbeat, not cadence","stepwise, not cadence",null,null,null,44,null,"Except similar motion between I64 and V chord",null,208,212,210,166,262]
[null,null,"Similar motion to unison between chords",null,null,"stepw. cadence","leap cadence","downbeat leap, not cadence","upbeat, not cadence","stepwise, not cadence",null,null,null,53,null,null,null,72,73,76,167,263]
[null,null,"Similar motion to 8ve in outer voices between chords",null,null,"stepw. cadence","leap cadence","downbeat leap, not cadence","upbeat, not cadence","stepwise, not cadence",null,null,null,44,null,null,null,209,213,211,168,264]
[null,"Suspension","Suspension resolution sounds simultaneously with suspension",null,null,":above sus",":below sus",":2nd",null,null,null,null,null,65,null,null,null,216,217,218]
[null,null,"Wrong resolution of suspension",null,null,":up",":unresolved",":by leap","short",":wrong beat","on beat 2","on beat 4",null,64,null,null,null,219,220,221,291,286,419,420]
[null,null,"Suspension resolution ornament",null,null,"leap to resolution","chatty","leap from sus",null,null,null,null,null,64,null,null,null,283,292,295]
[null,null,"Wrong usage of sus. in 2nd sp.",null,null,"I -> LT penultimate measure","not I -> LT penultimate measure",null,null,null,null,null,null,62,null,null,null,387,388]
[null,null,"Suspension prepared by 4th with bass",null,2,"/4th",null,null,null,null,null,null,null,54,null,null,null,289]
[null,null,"Suspension prepared by dissonance",null,null,"/diss. prep",null,null,null,null,null,null,null,63,null,null,null,458]
[null,"Border","Non-permitted first note",null,null,"V","III syncope","III","Other",null,null,null,null,null,null,null,null,532,533,534,535]
[null,null,"Non-permitted last note",null,"EB","V","III","Other",null,null,null,null,null,null,null,"For this rule E voice means highest voice, B means lowest voice, N means non-outer voice",null,536,537,538]
[null,null,"Non-permitted last note",null,"N","V","III","Other",null,null,null,null,null,null,null,"For this rule E voice means highest voice, B means lowest voice, N means non-outer voice",null,536,537,538]
[null,null,"Non-permitted first harmony",null,null,"not T in root position",null,null,null,null,null,null,null,57,null,"This rule is ignored if there is no cantus firmus",null,137]
[null,null,"Non-permitted last harmony",null,null,"not T in root position",null,null,null,null,null,null,null,57,null,null,null,531]
[null,null,"Non-permitted first harmonic interval",null,null,"M2","m7","M9","m2","M7","m9",null,null,57,null,null,null,241,242,243,252,253,254]
[null,null,"Penultimate chord",12345,null,":no leading-tone",":no V or VII chord",null,null,null,null,null,null,57,null,null,null,47,335]
[null,"Consecutive 3rds, 4ths and 6ths","Too many consecutive harmonic 3rds",null,2,"> 3",null,null,null,null,null,null,null,40,null,"More than AA 3rds in a row",null,89]
[null,null,"Too many consecutive harmonic 4ths",null,2,"> 3",null,null,null,null,null,null,null,40,null,"More than AA 4ths in a row",null,238]
[null,null,"Too many consecutive harmonic 6ths",null,2,"> 3",null,null,null,null,null,null,null,40,null,"More than AA 6ths in a row",null,90]
[null,"Dissonance","Unresolved harmonic tritone",null,null,"/unresolved",null,null,null,null,null,null,null,55,null,null,null,379]
[null,null,"Consecutive tritones",null,null,"parallel",null,null,null,null,null,null,null,null,null,null,null,162]
[null,null,"Consecutive tritones",null,"<6","contrary",null,null,null,null,null,null,null,null,null,null,null,163]
[null,null,"Consecutive tritones",null,"6E","contrary",null,null,null,null,null,null,null,null,null,null,null,163]
[null,null,"Misuse of a non-chord tone",null,null,":on downbeat",":longer than previous chord tone",":first note",null,null,null,null,null,6,null,null,null,83,223,551]
[null,null,"Neighbor tone should be surrounded by chord tones",null,null,"/wrong neighbor",null,null,null,null,null,null,null,66,null,null,null,170]
[null,null,"Harmonic 4th with bass",null,null,"first beat","long","lowest",null,null,null,null,null,null,null,"The 5th degree of a minor or major triad suggests a 6/4 chord (second inversion chord) when placed in the bass",null,135,150,151]
[null,null,"Harmonic tritone",null,null,":with lowest voice",null,null,null,null,null,null,null,7,null,"Allowed in penultimate measure",null,285]
[null,null,"Harmonic tritone",null,null,"in archaic mode",null,null,null,null,null,null,null,55,null,null,null,195]
[null,null,"Non-chord tone approached by leap",null,null,"/leap",null,null,null,null,null,null,null,6,null,null,null,36]
[null,null,"Non-chord tone left by leap",null,null,"/leap",null,null,null,null,null,null,null,6,null,null,null,187]
[null,null,"Similar motion to tritone",null,null,"tritone",null,null,null,null,null,null,null,null,null,null,null,161]
[null,null,"Similar motion to dissonance between outer voices",null,null,"m7","M7","m9","M9",null,null,null,null,47,null,null,null,169,276,173,174]
[null,"Voice motion","Voice overlapping",null,"<4","adjacent (touch)","adjacent voices","non-adjacent","direct 2nd",null,null,null,null,50,null,null,null,29,24,548,136]
[null,null,"Voice overlapping",null,">3","adjacent (touch)","adjacent voices","non-adjacent","direct 2nd",null,null,null,null,50,null,null,null,29,24,548,136]
[null,null,"Voice overlapping",null,">4","adjacent (touch)","adjacent voices","non-adjacent","direct 2nd",null,null,null,null,50,null,null,null,29,24,548,136]
[null,null,"Voices are too far apart",null,null,"> 12 semitones","> 16 semitones",null,null,null,null,null,null,null,null,null,null,293,294]
[null,null,"Voice crossing is prohibited",null,"<3","first measure","last measure","any",null,null,null,null,null,50,null,null,null,541,542,543]
[null,null,"Voice crossing is prohibited",null,">2","first measure","last measure",null,null,null,null,null,null,50,null,null,null,541,542]
[null,null,"Voice crossing is prohibited",null,">4","first measure","last measure",null,null,null,null,null,null,50,null,null,null,541,542]
[null,null,"Voice crossing is too long",null,"<5","> 1.5 measures","> 2.5 measures",null,null,null,null,null,null,50,null,null,null,518,519]
[null,null,"Voice crossing is too long",null,">4","> 1.5 measures","> 2.5 measures",null,null,null,null,null,null,50,null,null,null,518,519]
[null,null,"Voice crossing between non-adjacent voices",null,null,"/non-adjacent",null,null,null,null,null,null,null,50,null,null,null,520]
[null,null,"2nd interval during voice crossing",null,null,"/2nd interval",null,null,null,null,null,null,null,50,null,null,null,544]
[null,null,"Similar motion with crossing voices",null,null,":one voice leaps",":both voices leap",null,null,null,null,null,null,51,null,null,null,546,547]
[null,null,"Consecutive 2nd intervals during voice crossing",null,null,"/Two 2nd intervals",null,null,null,null,null,null,null,50,null,"Two consecutive harmonic 2nd intervals",null,545]
[null,null,"Similar motion in all parts between different harmonies",null,">2","/same direction",null,null,null,null,null,null,null,39,null,"Except movement to 6th chord or to ultimate harmony",null,214]
[null,null,"Parallel motion in all parts",null,">2","two times",null,null,null,null,null,null,null,40,null,null,null,550]
[null,"Nonchord tones","Cambiata",null,null,"/any",null,null,null,null,null,null,null,null,null,null,null,256]
[null,null,"Double-neighbor tone",null,null,"/any","approached by leap",":left by leap",null,null,null,null,null,68,null,null,null,258,3,97]
[null,null,"Passing dissonance on first beat",null,null,"/any",null,null,null,null,null,null,null,70,null,null,null,282]
[null,null,"Neighbor tone dissonance on first beat",null,null,"chord repeat",null,null,null,null,null,null,null,null,null,null,null,257]
[null,null,"Anticipation",null,">2","/any",null,null,null,null,null,null,null,31,null,null,null,287]
[null,null,"Anticipation",null,"<3","/any",null,null,null,null,null,null,null,31,null,null,null,287]
[]
[null,"Legend:"]
[]
[null,"Bold text","Rule violation is prohibited"]
[null,"Normal text","Rule can be violated"]
[null,"Strikethrough","Rule is ignored and not checked"]
[null,"Italic text","Rule or subrule name is parsed for parameter"]
[null,"Underlined","Rule is automatically tested in continuous integration"]
[null,"Back color","Shows rule severity and penalty (red is highest penalty). Use only colors from palette in Colors tab"]
[]
[null,"Keyboard shortcuts:"]
[]
[null,"Ctrl+D ","Compile"]
[]
[null,"How to use:"]
[]
[null,"Interval names:"]
[null,"Minor","m2, m3, m6, m7, m9, m10, m13, m14"]
[null,"Major","M2, M3, M6, M7, M9, M10, M13, M14"]
[null,"Perfect","4th, 5th, 8ve, 11th, 12th, 15th"]
[null,"Tritone","b5"]

{"sheet":"Data","index":1,"n_rows":465,"n_cols":26,"rows_kept":465,"cut":false,"hidden":false,"merged":[]}
["Rid","Class","Group","Rule","Subrule","VIZ","VI","VC","VH","VS","VT","FQ","CF","GFP","IFP","DEU","MEI","ER","UE","R","Severity","Flag","Spec","Voice","GComment","Comment"]
[1,"Melody","Uncompensated leap","Uncompensated leap","border 4th",null,null,null,null,null,null,null,null,null,null,null,null,null,null,null,0,-1,5,null,"If no other uncompensated rules worked.","Border leap of this size or below"]
[2,"Melody","Tritone","Tritone: adjacent",":resolved",null,null,null,null,null,null,null,null,null,null,null,null,null,null,null,50,0,10,null,"Melodic adjacent tritone","Search 4 quarters for resolution if penultimate measure"]
[3,"Harmony","Nonchord tones","Double-neighbor tone","approached by leap",null,null,null,null,null,null,null,null,null,null,null,null,null,null,null,0,0,null,null,null,"There is a leap before first note of double-neighbour tone group"]
[8,"Melody","Change of melodic direction around leap","Leap back","<=6th",null,null,null,null,null,null,null,null,null,null,null,null,null,null,null,0,-1,null,null,null,"After leap there is an immediate returning leap in the opposite direction. This returning leap is a 6th or shorter"]
[10,"Melody","Melodic repeats","Frequent return to the same note",">3 in 7 notes",null,null,null,null,null,null,null,null,null,null,null,null,null,null,null,0,-1,null,null,"Same note repeats more than AA times within BB adjacent notes"]
[12,"Melody","Melodic repeats","Melodic climax is repeated","in upper part",null,null,null,null,null,null,null,null,null,null,null,null,null,null,null,100,0,12345,null,null,"Multiple culminations in higher voice"]
[15,"Melody","Range","No melody development","12 notes <12",null,null,null,null,null,null,null,null,null,null,null,null,null,null,null,0,1,null,null,null,"Averaged melody direction within AA notes is less than BB deci-semitones"]
[16,"Melody","Range","No melody development","15 notes <15",null,null,null,null,null,null,null,null,null,null,null,null,null,null,null,0,1,null,null,null,"Averaged melody direction within AA notes is less than BB deci-semitones"]
[17,"Harmony","Harmony","Repeating functions in a row",">4 T",null,null,null,null,null,null,null,null,null,null,null,null,null,null,null,0,0,null,null,"More than AA consecutive harmonies all have this letter"]
[18,"Melody","Tritone","Audible tritone: framed",":resolved",null,null,null,null,null,null,null,null,null,null,null,null,null,null,null,0,0,2345,null,"Tritone within measure with intermediate notes, framed by two melody direction changes"]
[19,"Melody","Tritone","Audible tritone: framed",":unresolved",null,null,null,null,null,null,null,null,null,null,null,null,null,null,null,50,0,2345,null,"Tritone within measure with intermediate notes, framed by two melody direction changes"]
[20,"Harmony","Harmony","Missing functions in a row",">5 without T",null,null,null,null,null,null,null,null,null,null,null,null,null,null,null,0,0,null,null,"More than AA consecutive harmonies do not have this letter"]
[21,"Melody","Melodic repeats","Melodic climax","late 3",null,null,null,null,null,null,null,null,null,null,null,null,null,null,null,0,-1,null,null,null,"Only for upper voice"]
[22,"Melody","Change of melodic direction around leap","Leap back",">6th",null,null,null,null,null,null,null,null,null,null,null,null,null,null,null,0,-1,null,null,null,"After leap there is an immediate returning leap in the opposite direction. This returning leap is longer than 6th"]
[23,"Harmony","Harmony","Harmonic progression","3 x bad",null,null,null,null,null,null,null,null,null,null,null,null,null,null,null,0,0,null,null,null,"Three consecutive harmonic progressions each with penalty 2"]
[24,"Harmony","Voice motion","Voice overlapping","adjacent voices",null,null,null,null,null,null,null,null,null,null,null,null,null,null,null,0,0,null,">4"]
[29,"Harmony","Voice motion","Voice overlapping","adjacent (touch)",null,null,null,null,null,null,null,null,null,null,null,null,null,null,null,0,0,null,">4"]
[30,"Rhythm","Repeats and ties","Note repeat","cantus",null,null,null,null,null,null,null,null,null,null,null,null,null,null,null,100,0,null,null,null,"Slurs are prohibited in cantus"]
[31,"Melody","Tritone","Tritone: adjacent",":unresolved",null,null,null,null,null,null,null,null,null,null,null,null,null,null,null,100,0,10,null,"Melodic adjacent tritone"]
[36,"Harmony","Dissonance","Non-chord tone approached by leap","/leap",null,null,null,null,null,null,null,null,null,null,null,null,null,null,null,100,0,null,null,null,"Leap to harmonic upbeat dissonance"]
[39,"Melody","Melodic repeats","Frequent return to the same note",">4 in 9 notes",null,null,null,null,null,null,null,null,null,null,null,null,null,null,null,50,0,null,null,"Same note repeats more than AA times within BB adjacent notes"]
[41,"Rhythm","Rhythm","Note lasts for too many measures",">2",null,null,null,null,null,null,null,null,null,null,null,null,null,null,null,50,0,null,null,null,"Note crosses more than two measures"]
[47,"Harmony","Border","Penultimate chord",":no leading-tone",null,null,null,null,null,null,null,null,null,null,null,null,null,null,null,50,0,12345,null,null,"no leading tone is allowed if last bass notes are V-I"]
[48,"Harmony","Harmony","Cadential progression","V-I",null,null,null,null,null,null,null,null,null,null,null,null,null,null,null,50,0,null,null,null,"Bass note going from V note to I octave in outer voices in D-T progression before cadence"]
[57,"Harmony","Harmony","Harmonic progression","bad",null,null,null,null,null,null,null,null,null,null,null,null,null,null,null,0,-1,null,null,null,"See harmonic progressions with penalty 2"]
[58,"Melody","Change of melodic direction around leap","Leap back","overflow",null,null,null,null,null,null,null,null,null,null,null,null,null,null,null,0,-1,null,null,null,"After leap there is an immediate returning leap in the opposite direction. This returning leap is longer than initial leap"]
[67,"Melody","Range","Skipped notes",1,null,null,null,null,null,null,null,null,null,null,null,null,null,null,null,0,-1,null,null,"Skipped notes that do not appear within this voice"]
[68,"Melody","Range","Skipped notes",">1",null,null,null,null,null,null,null,null,null,null,null,null,null,null,null,0,-1,null,null,"Skipped notes that do not appear within this voice"]
[69,"Melody","Range","Skipped notes",">1 joined",null,null,null,null,null,null,null,null,null,null,null,null,null,null,null,0,0,null,null,"Skipped notes that do not appear within this voice"]
[70,"Melody","Melodic repeats","Frequent return to the tonic","3 within 6",null,null,null,null,null,null,null,null,null,null,null,null,null,null,null,50,0,4,"EB","More than AA tonic notes within BB adjacent notes","AA tonic note equivalents within BB notes. Less weight is assigned to a tonic note in species 2,3,5 if all conditions meet:  There is no leap above M3 to this tonic note. This tonic note is not a local culmination. This tonic note is not longer than previous note. This tonic note is not downbeat. Tonic note length is less than half note."]
[71,"Melody","Melodic repeats","Frequent return to the tonic","5 within 12",null,null,null,null,null,null,null,null,null,null,null,null,null,null,null,50,0,4,"EB","More than AA tonic notes within BB adjacent notes","AA tonic note equivalents within BB notes. Less weight is assigned to a tonic note in species 3,5 if all conditions meet:  There is no leap above M3 to this tonic note. This tonic note is not a local culmination. This tonic note is not longer than previous note. This tonic note is not downbeat. Tonic note length is less than half note."]
[72,"Harmony","Perfect consonance","Similar motion to unison between chords","stepw. cadence",null,null,null,null,null,null,null,null,null,null,null,null,null,null,null,0,1,null,null,null,"Direct movement to unison with stepwize motion in higher voice to last measure"]
[73,"Harmony","Perfect consonance","Similar motion to unison between chords","leap cadence",null,null,null,null,null,null,null,null,null,null,null,null,null,null,null,0,1,null,null,null,"Direct movement to unison with leaping motion in higher voice to last measure"]
[74,"Melody","Melodic minor","bVII note",":before the tonic",null,null,null,null,null,null,null,null,null,null,null,null,null,null,null,0,0,null,null,null,"Before tonic note: next (or second to next in cadence) in melodic minor, if both notes are chord tones"]
[76,"Harmony","Perfect consonance","Similar motion to unison between chords","downbeat leap, not cadence",null,null,null,null,null,null,null,null,null,null,null,null,null,null,null,100,0,null,null,null,"Direct movement to unison on downbeat with leap in upper voice: not in cadence"]
[77,"Harmony","Harmony","Harmonic progression","non-ideal",null,null,null,null,null,null,null,null,null,null,null,null,null,null,null,0,-1,null,null,null,"See harmonic progressions with penalty 1"]
[78,"Melody","Melodic repeats","Melodic climax","early <3",null,null,null,null,null,null,null,null,null,null,null,null,null,null,null,0,-1,null,null,null,"Only for upper voice"]
[79,"Melody","Melodic repeats","Melodic climax","early <5",null,null,null,null,null,null,null,null,null,null,null,null,null,null,null,0,-1,null,null,null,"Only for upper voice"]
[83,"Harmony","Dissonance","Misuse of a non-chord tone",":on downbeat",null,null,null,null,null,null,null,null,null,null,null,null,null,null,null,100,0]
[84,"Harmony","Perfect consonance","Consecutive 5ths","parallel",null,null,null,null,null,null,null,null,null,null,null,null,null,null,null,100,0]
[85,"Harmony","Perfect consonance","Consecutive 5ths","contrary",null,null,null,null,null,null,null,null,null,null,null,null,null,null,null,50,0,null,"6E"]
[88,"Rhythm","Rhythm","Wrong usage of eighth notes","leap",null,null,null,null,null,null,null,null,null,null,null,null,null,null,null,50,0,5,null,null,"Leap from or to 1/8 note"]
[89,"Harmony","Consecutive 3rds, 4ths and 6ths","Too many consecutive harmonic 3rds","> 3",null,null,null,null,null,null,null,null,null,null,null,null,null,null,null,50,0,null,2,"More than AA 3rds in a row"]
[90,"Harmony","Consecutive 3rds, 4ths and 6ths","Too many consecutive harmonic 6ths","> 3",null,null,null,null,null,null,null,null,null,null,null,null,null,null,null,50,0,null,2,"More than AA 6ths in a row"]
[91,"Harmony","Perfect consonance","Unison",":on downbeat",null,null,null,null,null,null,null,null,null,null,null,null,null,null,null,50,0,null,null,null,"Downbeat unison is not allowed inside counterpoint - only as first or last interval of counterpoint: except >4 voices or between two lowest voices in 4 voices."]
[92,"Harmony","Harmony","Harmonic progression","2 x bad",null,null,null,null,null,null,null,null,null,null,null,null,null,null,null,0,-1,null,null,null,"Two consecutive harmonic progressions each with penalty 2"]
[93,"Rhythm","Repeats and ties","Note is repeated: in 10 notes","once",null,null,null,null,null,null,null,null,null,null,null,null,null,null,null,0,0,10,null,"Note repeat happens several times"]
[94,"Rhythm","Repeats and ties","Note is repeated: in 10 notes","2 times",null,null,null,null,null,null,null,null,null,null,null,null,null,null,null,50,0,10,null,"Note repeat happens several times"]
[95,"Rhythm","Repeats and ties","Note is repeated: in 10 notes",">2 times",null,null,null,null,null,null,null,null,null,null,null,null,null,null,null,50,0,10,null,"Note repeat happens several times"]
[97,"Harmony","Nonchord tones","Double-neighbor tone",":left by leap",null,null,null,null,null,null,null,null,null,null,null,null,null,null,null,0,0,null,null,null,"There is a leap after last note of double-neighbour tone"]
[99,"Harmony","Harmony","Repeated harmony",":in same inversion",null,null,null,null,null,null,null,null,null,null,null,null,null,null,null,50,0,null,null,"Harmonic stagnation","Chord is repeated with same inversion"]
[100,"Melody","Compensated leap","Uncompensated leap: compensation deviation to 2nd","3rd",null,null,null,null,null,null,null,null,null,null,null,null,null,null,null,0,-1,5,null,"Compensation can be deviated one 2nd interval above last leap note"]
[101,"Melody","Compensated leap","Uncompensated leap: compensation deviation to 2nd","4th",null,null,null,null,null,null,null,null,null,null,null,null,null,null,null,0,-1,5,null,"Compensation can be deviated one 2nd interval above last leap note"]
[102,"Melody","Compensated leap","Uncompensated leap: compensation deviation to 2nd","5th",null,null,null,null,null,null,null,null,null,null,null,null,null,null,null,0,-1,5,null,"Compensation can be deviated one 2nd interval above last leap note"]
[103,"Melody","Compensated leap","Uncompensated leap: compensation deviation to 2nd","6th",null,null,null,null,null,null,null,null,null,null,null,null,null,null,null,0,-1,5,null,"Compensation can be deviated one 2nd interval above last leap note"]
[104,"Melody","Compensated leap","Uncompensated leap: compensation deviation to 2nd","8ve",null,null,null,null,null,null,null,null,null,null,null,null,null,null,null,0,-1,5,null,"Compensation can be deviated one 2nd interval above last leap note"]
[105,"Melody","Compensated leap","Uncompensated leap: compensation deviation to 3rd","3rd",null,null,null,null,null,null,null,null,null,null,null,null,null,null,null,0,-1,235,null,"Compensation can be deviated one 3rd interval above last leap note"]
[106,"Melody","Compensated leap","Uncompensated leap: compensation deviation to 3rd","4th",null,null,null,null,null,null,null,null,null,null,null,null,null,null,null,0,-1,235,null,"Compensation can be deviated one 3rd interval above last leap note"]
[107,"Melody","Compensated leap","Uncompensated leap: compensation deviation to 3rd","5th",null,null,null,null,null,null,null,null,null,null,null,null,null,null,null,0,-1,235,null,"Compensation can be deviated one 3rd interval above last leap note"]
[108,"Melody","Compensated leap","Uncompensated leap: compensation deviation to 3rd","6th",null,null,null,null,null,null,null,null,null,null,null,null,null,null,null,50,0,235,null,"Compensation can be deviated one 3rd interval above last leap note","Possible in species 3,5 when immediate with short notes"]
[109,"Melody","Compensated leap","Uncompensated leap: compensation deviation to 3rd","8ve",null,null,null,null,null,null,null,null,null,null,null,null,null,null,null,50,0,235,null,"Compensation can be deviated one 3rd interval above last leap note","Possible in species 3,5 when immediate with short notes"]
[110,"Melody","Compensated leap","Compensation after 3rd","3rd",null,null,null,null,null,null,null,null,null,null,null,null,null,null,null,0,-1,null,null,"Compensation has a gap of one 3rd below last leap note"]
[111,"Melody","Compensated leap","Compensation after 3rd","4th",null,null,null,null,null,null,null,null,null,null,null,null,null,null,null,0,-1,null,null,"Compensation has a gap of one 3rd below last leap note"]
[112,"Melody","Compensated leap","Compensation after 3rd","5th",null,null,null,null,null,null,null,null,null,null,null,null,null,null,null,0,-1,null,null,"Compensation has a gap of one 3rd below last leap note"]
[113,"Melody","Compensated leap","Compensation after 3rd","6th",null,null,null,null,null,null,null,null,null,null,null,null,null,null,null,0,-1,null,null,"Compensation has a gap of one 3rd below last leap note"]
[114,"Melody","Compensated leap","Compensation after 3rd","8ve",null,null,null,null,null,null,null,null,null,null,null,null,null,null,null,0,-1,null,null,"Compensation has a gap of one 3rd below last leap note"]
[115,"Melody","Compensated leap","Compensated to 3rd prepared","-",null,null,null,null,null,null,null,null,null,null,null,null,null,null,null,0,0,null,null,"Prepared within 5 notes"]
[116,"Melody","Compensated leap","Compensated to 3rd prepared","4th",null,null,null,null,null,null,null,null,null,null,null,null,null,null,null,0,-1,null,null,"Prepared within 5 notes"]
[117,"Melody","Compensated leap","Compensated to 3rd prepared","5th",null,null,null,null,null,null,null,null,null,null,null,null,null,null,null,0,-1,null,null,"Prepared within 5 notes"]
[118,"Melody","Compensated leap","Compensated to 3rd prepared","6th",null,null,null,null,null,null,null,null,null,null,null,null,null,null,null,0,-1,null,null,"Prepared within 5 notes"]
[119,"Melody","Compensated leap","Compensated to 3rd prepared","8ve",null,null,null,null,null,null,null,null,null,null,null,null,null,null,null,0,-1,null,null,"Prepared within 5 notes"]
[120,"Melody","Compensated leap","Compensated to 3rd","-",null,null,null,null,null,null,null,null,null,null,null,null,null,null,null,0,0]
[121,"Melody","Compensated leap","Compensated to 3rd","4th",null,null,null,null,null,null,null,null,null,null,null,null,null,null,null,0,-1]
[122,"Melody","Compensated leap","Compensated to 3rd","5th",null,null,null,null,null,null,null,null,null,null,null,null,null,null,null,0,-1]
[123,"Melody","Compensated leap","Compensated to 3rd","6th",null,null,null,null,null,null,null,null,null,null,null,null,null,null,null,0,-1]
[124,"Melody","Compensated leap","Compensated to 3rd","8ve",null,null,null,null,null,null,null,null,null,null,null,null,null,null,null,0,-1]
[125,"Melody","Compensated leap","Aggregated compensation+precompensation to 3rd","-",null,null,null,null,null,null,null,null,null,null,null,null,null,null,null,0,0,5,null,"Distance between precompensation and compensation is not greater than a 3rd"]
[126,"Melody","Compensated leap","Aggregated compensation+precompensation to 3rd","-",null,null,null,null,null,null,null,null,null,null,null,null,null,null,null,0,0,5,null,"Distance between precompensation and compensation is not greater than a 3rd"]
[127,"Melody","Compensated leap","Aggregated compensation+precompensation to 3rd","5th",null,null,null,null,null,null,null,null,null,null,null,null,null,null,null,0,-1,5,null,"Distance between precompensation and compensation is not greater than a 3rd"]
[128,"Melody","Compensated leap","Aggregated compensation+precompensation to 3rd","6th",null,null,null,null,null,null,null,null,null,null,null,null,null,null,null,0,-1,5,null,"Distance between precompensation and compensation is not greater than a 3rd"]
[129,"Melody","Compensated leap","Aggregated compensation+precompensation to 3rd","8ve",null,null,null,null,null,null,null,null,null,null,null,null,null,null,null,0,-1,5,null,"Distance between precompensation and compensation is not greater than a 3rd"]
[130,"Melody","Compensated leap","C5P last 3 measures, 8 notes","3rd",null,null,null,null,null,null,null,null,null,null,null,null,null,null,null,0,-1,null,null,"Compensated to 5th, precompensated within 6 notes"]
[131,"Melody","Compensated leap","C5P last 3 measures, 8 notes","4th",null,null,null,null,null,null,null,null,null,null,null,null,null,null,null,0,-1,null,null,"Compensated to 5th, precompensated within 6 notes"]
[132,"Melody","Compensated leap","C5P last 3 measures, 8 notes","5th",null,null,null,null,null,null,null,null,null,null,null,null,null,null,null,0,-1,null,null,"Compensated to 5th, precompensated within 6 notes"]
[133,"Melody","Compensated leap","C5P last 3 measures, 8 notes","6th",null,null,null,null,null,null,null,null,null,null,null,null,null,null,null,0,-1,null,null,"Compensated to 5th, precompensated within 6 notes"]
[134,"Melody","Compensated leap","C5P last 3 measures, 8 notes","8ve",null,null,null,null,null,null,null,null,null,null,null,null,null,null,null,0,-1,null,null,"Compensated to 5th, precompensated within 6 notes"]
[136,"Harmony","Voice motion","Voice overlapping","direct 2nd",null,null,null,null,null,null,null,null,null,null,null,null,null,null,null,100,0,null,">4",null,"Similar movement to harmonic second interval"]
[137,"Harmony","Border","Non-permitted first harmony","not T in root position",null,null,null,null,null,null,null,null,null,null,null,null,null,null,null,50,0,null,null,"This rule is ignored if there is no cantus firmus"]
[138,"Rhythm","Rhythm","Misuse of rest","wrong starting rest",null,null,null,null,null,null,null,null,null,null,null,null,null,null,null,50,0,null,null,"This rule is ignored if there is no cantus firmus","Wrong starting rest length"]
[139,"Harmony","Harmony","Modulating progression","II-III (m)",null,null,null,null,null,null,null,null,null,null,null,null,null,null,null,0,0,null,null,null,"Prohibit III (CEG) in root position after II (BDF) in minor because it is modulating"]
[140,"Melody","Uncompensated leap","Uncompensated leap: precompensated","3rd",null,null,null,null,null,null,null,null,null,null,null,null,null,null,null,0,-1,4]
[141,"Melody","Uncompensated leap","Uncompensated leap: precompensated","4th",null,null,null,null,null,null,null,null,null,null,null,null,null,null,null,0,-1,4]
[142,"Melody","Uncompensated leap","Uncompensated leap: precompensated","5th",null,null,null,null,null,null,null,null,null,null,null,null,null,null,null,0,0,4]
[143,"Melody","Uncompensated leap","Uncompensated leap: precompensated","6th",null,null,null,null,null,null,null,null,null,null,null,null,null,null,null,50,0,4]
[144,"Melody","Uncompensated leap","Uncompensated leap: precompensated","8ve",null,null,null,null,null,null,null,null,null,null,null,null,null,null,null,50,0,4]
[145,"Melody","Uncompensated leap","Precompensated last 2 leaps","3rd",null,null,null,null,null,null,null,null,null,null,null,null,null,null,null,0,-1,null,null,"Leap within last XX notes in cantus/counterpoint"]
[146,"Melody","Uncompensated leap","Precompensated last 2 leaps","4th",null,null,null,null,null,null,null,null,null,null,null,null,null,null,null,0,-1,null,null,"Leap within last XX notes in cantus/counterpoint"]
[147,"Melody","Uncompensated leap","Precompensated last 2 leaps","5th",null,null,null,null,null,null,null,null,null,null,null,null,null,null,null,0,-1,null,null,"Leap within last XX notes in cantus/counterpoint"]
[148,"Melody","Uncompensated leap","Precompensated last 2 leaps","6th",null,null,null,null,null,null,null,null,null,null,null,null,null,null,null,0,-1,null,null,"Leap within last XX notes in cantus/counterpoint"]
[149,"Melody","Uncompensated leap","Precompensated last 2 leaps","8ve",null,null,null,null,null,null,null,null,null,null,null,null,null,null,null,0,-1,null,null,"Leap within last XX notes in cantus/counterpoint"]
[152,"Melody","Melodic minor","Chromaticism: close","VI<->VI#",null,null,null,null,null,null,null,null,null,null,null,null,null,null,null,100,0,null,null,"These two notes are tightly close","Chromatic"]
[153,"Melody","Melodic minor","Chromaticism: close","VII<->VII#",null,null,null,null,null,null,null,null,null,null,null,null,null,null,null,100,0,null,null,"These two notes are tightly close","Chromatic"]
[154,"Melody","Melodic minor","Dim or aug melodic interval","VI<->VII#",null,null,null,null,null,null,null,null,null,null,null,null,null,null,null,50,0,null,null,null,"Augmented / diminished"]
[155,"Melody","Melodic minor","Dim or aug melodic interval","VI#<->III",null,null,null,null,null,null,null,null,null,null,null,null,null,null,null,100,0,null,null,null,"Augmented / diminished"]
[156,"Melody","Melodic minor","Dim or aug melodic interval","VII#-III",null,null,null,null,null,null,null,null,null,null,null,null,null,null,null,100,0,null,null,null,"Augmented / diminished"]
[157,"Melody","Melodic minor","Dim or aug melodic interval","III-VII#",null,null,null,null,null,null,null,null,null,null,null,null,null,null,null,100,0,null,null,null,"Augmented / diminished"]
[158,"Melody","Melodic minor","Chromaticism: far","VI<->VI#",null,null,null,null,null,null,null,null,null,null,null,null,null,null,null,50,0,null,null,"These two notes are one note apart and are in neighboring harmonies"]
[159,"Melody","Melodic minor","Chromaticism: far","VII<->VII#",null,null,null,null,null,null,null,null,null,null,null,null,null,null,null,50,0,null,null,"These two notes are one note apart and are in neighboring harmonies"]
[160,"Rhythm","Rhythm","Non-permitted rhythm","long inside",null,null,null,null,null,null,null,null,null,null,null,null,null,null,null,50,0,null,null,null,"Too long note in measure for species 2 and 4."]
[161,"Harmony","Dissonance","Similar motion to tritone","tritone",null,null,null,null,null,null,null,null,null,null,null,null,null,null,null,0,0,null,null,null,"Direct movement to tritone"]
[162,"Harmony","Dissonance","Consecutive tritones","parallel",null,null,null,null,null,null,null,null,null,null,null,null,null,null,null,0,0]
[163,"Harmony","Dissonance","Consecutive tritones","contrary",null,null,null,null,null,null,null,null,null,null,null,null,null,null,null,0,0,null,"6E"]
[164,"Harmony","Melodic minor","False chromatic relation: in non-outer voices","VI<->VI#",null,null,null,null,null,null,null,null,null,null,null,null,null,null,null,50,0,null,null,"These two notes are harmonic tones in neighboring harmonies, but are in different voices"]
[165,"Harmony","Melodic minor","False chromatic relation: in non-outer voices","VII<->VII#",null,null,null,null,null,null,null,null,null,null,null,null,null,null,null,50,0,null,null,"These two notes are harmonic tones in neighboring harmonies, but are in different voices"]
[166,"Harmony","Perfect consonance","Similar motion to 5th in outer voices between chords","upbeat, not cadence",null,null,null,null,null,null,null,null,null,null,null,null,null,null,null,50,0,null,null,"Except similar motion between I64 and V chord","Direct movement to 5th on upbeat: not in cadence"]
[167,"Harmony","Perfect consonance","Similar motion to unison between chords","upbeat, not cadence",null,null,null,null,null,null,null,null,null,null,null,null,null,null,null,50,0,null,null,null,"Direct movement to unison on upbeat: not in cadence"]
[168,"Harmony","Perfect consonance","Similar motion to 8ve in outer voices between chords","upbeat, not cadence",null,null,null,null,null,null,null,null,null,null,null,null,null,null,null,50,0,null,null,null,"Direct movement to 8ve on upbeat: not in cadence"]
[169,"Harmony","Dissonance","Similar motion to dissonance between outer voices","m7",null,null,null,null,null,null,null,null,null,null,null,null,null,null,null,50,0,null,null,null,"Minor 7th"]
[170,"Harmony","Dissonance","Neighbor tone should be surrounded by chord tones","/wrong neighbor",null,null,null,null,null,null,null,null,null,null,null,null,null,null,null,50,0]
[172,"Harmony","Harmony","Incomplete harmony","penultimate",null,null,null,null,null,null,null,null,null,null,null,null,null,null,null,50,0,null,null,null,"Starting from 3 voices chords in penultimate measure should have all three chord tones on first beat or suspension resolution or PDD resolution note. In 2 voices - at least two chord tones."]
[173,"Harmony","Dissonance","Similar motion to dissonance between outer voices","m9",null,null,null,null,null,null,null,null,null,null,null,null,null,null,null,50,0,null,null,null,"Minor 9th"]
[174,"Harmony","Dissonance","Similar motion to dissonance between outer voices","M9",null,null,null,null,null,null,null,null,null,null,null,null,null,null,null,50,0,null,null,null,"Major 9th"]
[175,"Melody","Leaps","Non-permitted melodic interval: ascending",":m6",null,null,null,null,null,null,null,null,null,null,null,null,null,null,null,0,-1]
[176,"Melody","Leaps","Non-permitted melodic interval: ascending",":maj6",null,null,null,null,null,null,null,null,null,null,null,null,null,null,null,0,-1]
[177,"Melody","Leaps","Non-permitted melodic interval: ascending",":m7",null,null,null,null,null,null,null,null,null,null,null,null,null,null,null,50,0]
[178,"Melody","Leaps","Non-permitted melodic interval: ascending",":maj7",null,null,null,null,null,null,null,null,null,null,null,null,null,null,null,100,0]
[179,"Melody","Leaps","Non-permitted melodic interval: ascending",":8ve",null,null,null,null,null,null,null,null,null,null,null,null,null,null,null,0,-1]
[180,"Melody","Leaps","Non-permitted melodic interval: ascending",":greater than 8ve",null,null,null,null,null,null,null,null,null,null,null,null,null,null,null,100,0]
[181,"Melody","Leaps","Non-permitted melodic interval: descending",":m6",null,null,null,null,null,null,null,null,null,null,null,null,null,null,null,0,-1]
[182,"Melody","Leaps","Non-permitted melodic interval: descending",":maj6",null,null,null,null,null,null,null,null,null,null,null,null,null,null,null,0,-1]
[183,"Melody","Leaps","Non-permitted melodic interval: descending",":m7",null,null,null,null,null,null,null,null,null,null,null,null,null,null,null,50,0]
[184,"Melody","Leaps","Non-permitted melodic interval: descending",":maj7",null,null,null,null,null,null,null,null,null,null,null,null,null,null,null,100,0]
[185,"Melody","Leaps","Non-permitted melodic interval: descending",":8ve",null,null,null,null,null,null,null,null,null,null,null,null,null,null,null,0,-1]
[186,"Melody","Leaps","Non-permitted melodic interval: descending",":greater than 8ve",null,null,null,null,null,null,null,null,null,null,null,null,null,null,null,100,0]
[187,"Harmony","Dissonance","Non-chord tone left by leap","/leap",null,null,null,null,null,null,null,null,null,null,null,null,null,null,null,100,0,null,null,null,"Leap from harmonic upbeat dissonance"]
[188,"Rhythm","Repeats and ties","Frequent interruption of syncopation: within 10 notes","once",null,null,null,null,null,null,null,null,null,null,null,null,null,null,null,0,0,4,null,"Except interruption of syncopation between penultimate and last measure","One syncopation is interrupted, resulting in two separate half notes"]
[189,"Rhythm","Repeats and ties","Frequent interruption of syncopation: within 10 notes","2 times",null,null,null,null,null,null,null,null,null,null,null,null,null,null,null,50,0,4,null,"Except interruption of syncopation between penultimate and last measure"]
[190,"Rhythm","Repeats and ties","Frequent interruption of syncopation: within 10 notes",">2 times",null,null,null,null,null,null,null,null,null,null,null,null,null,null,null,50,0,4,null,"Except interruption of syncopation between penultimate and last measure"]
[191,"Melody","Compensated leap","Uncompensated leap: compensation deviation to 2nd","late >3",null,null,null,null,null,null,null,null,null,null,null,null,null,null,null,50,0,5,null,"Compensation can be deviated one 2nd interval above last leap note","Deviation after compensation note AA (1 for >5th)"]
[192,"Melody","Compensated leap","Uncompensated leap: compensation deviation to 3rd","late >3",null,null,null,null,null,null,null,null,null,null,null,null,null,null,null,50,0,235,null,"Compensation can be deviated one 3rd interval above last leap note","Deviation after compensation note AA (2 for >5th)"]
[193,"Melody","Melodic repeats","Melodic climax","early 50%",null,null,null,null,null,null,null,null,null,null,null,null,null,null,null,0,-1,null,null,null,"Only for upper voice"]
[194,"Harmony","Harmony","7th chord","/Other",null,null,null,null,null,null,null,null,null,null,null,null,null,null,null,50,0,null,">2"]
[195,"Harmony","Dissonance","Harmonic tritone","in archaic mode",null,null,null,null,null,null,null,null,null,null,null,null,null,null,null,50,0,null,null,null,"In ancient modes, tritone is prohibited between any voices"]
[196,"Harmony","Harmony","Six-four chord",":suggestive",null,null,null,null,null,null,null,null,null,null,null,null,null,null,null,0,0,null,null,null,"6/4 chord with repeating 5th on beat 2 or 4"]
[197,"Melody","Border","Leading tone is unresolved","/unresolved",null,null,null,null,null,null,null,null,null,null,null,null,null,null,null,50,0,12345,null,null,"Leading tone has to resolve up stepwise. If there is leading tone doubling, second leading tone can resolve stepwise down."]
[199,"Melody","Melodic minor","VI# note without close VII# note","within 2 notes",null,null,null,null,null,null,null,null,null,null,null,null,null,null,null,0,1,null,null,"There is no VII# note before or after VI# chord tone in close proximity"]
[200,"Melody","Melodic minor","bVII note","10 after VII#",null,null,null,null,null,null,null,null,null,null,null,null,null,null,null,0,1,null,null,null,"AA notes after VII# note"]
[201,"Melody","Melodic minor","VI# should be surrounded by ascending stepwise motion","/VI#",null,null,null,null,null,null,null,null,null,null,null,null,null,null,null,0,1,2345,null,"Chord tone VI# is not surrounded by stepwise diatonic ascending movement"]
[202,"Melody","Melodic minor","VIIb should be surrounded by descending stepwise motion","/VIIb",null,null,null,null,null,null,null,null,null,null,null,null,null,null,null,0,1,2345,null,"Chord tone VII natural is not surrounded by stepwise diatonic descending movement"]
[203,"Melody","Uncompensated leap","Uncompensated child leap","3rd",null,null,null,null,null,null,null,null,null,null,null,null,null,null,null,0,-1,null,null,"After longer leap or before longer/same leap."]
[204,"Melody","Uncompensated leap","Uncompensated child leap","4th",null,null,null,null,null,null,null,null,null,null,null,null,null,null,null,0,-1,null,null,"After longer leap or before longer/same leap.","Possible in cantus"]
[205,"Melody","Uncompensated leap","Uncompensated child leap","5th",null,null,null,null,null,null,null,null,null,null,null,null,null,null,null,0,-1,null,null,"After longer leap or before longer/same leap."]
[206,"Melody","Uncompensated leap","Uncompensated child leap","6th",null,null,null,null,null,null,null,null,null,null,null,null,null,null,null,0,-1,null,null,"After longer leap or before longer/same leap."]
[207,"Melody","Uncompensated leap","Uncompensated child leap","8ve",null,null,null,null,null,null,null,null,null,null,null,null,null,null,null,0,-1,null,null,"After longer leap or before longer/same leap."]
[208,"Harmony","Perfect consonance","Similar motion to 5th in outer voices between chords","stepw. cadence",null,null,null,null,null,null,null,null,null,null,null,null,null,null,null,100,0,null,null,"Except similar motion between I64 and V chord","Direct movement to 5th with stepwize motion in higher voice to last measure"]
[209,"Harmony","Perfect consonance","Similar motion to 8ve in outer voices between chords","stepw. cadence",null,null,null,null,null,null,null,null,null,null,null,null,null,null,null,0,1,null,null,null,"Direct movement to 8va with stepwize motion in higher voice to last measure"]
[210,"Harmony","Perfect consonance","Similar motion to 5th in outer voices between chords","downbeat leap, not cadence",null,null,null,null,null,null,null,null,null,null,null,null,null,null,null,100,0,null,null,"Except similar motion between I64 and V chord","Direct movement to 5th on downbeat with leap in upper voice: not in cadence"]
[211,"Harmony","Perfect consonance","Similar motion to 8ve in outer voices between chords","downbeat leap, not cadence",null,null,null,null,null,null,null,null,null,null,null,null,null,null,null,100,0,null,null,null,"Direct movement to 8ve on downbeat with leap in upper voice: not in cadence"]
[212,"Harmony","Perfect consonance","Similar motion to 5th in outer voices between chords","leap cadence",null,null,null,null,null,null,null,null,null,null,null,null,null,null,null,100,0,null,null,"Except similar motion between I64 and V chord","Direct movement to 5th with leaping motion in higher voice to last measure"]
[213,"Harmony","Perfect consonance","Similar motion to 8ve in outer voices between chords","leap cadence",null,null,null,null,null,null,null,null,null,null,null,null,null,null,null,0,1,null,null,null,"Direct movement to 8va with leaping motion in higher voice to last measure"]
[214,"Harmony","Voice motion","Similar motion in all parts between different harmonies","/same direction",null,null,null,null,null,null,null,null,null,null,null,null,null,null,null,50,0,null,">2","Except movement to 6th chord or to ultimate harmony"]
[215,"Rhythm","Rhythm","Identical rhythm in all parts","/same",null,null,null,null,null,null,null,null,null,null,null,null,null,null,null,0,1,null,null,"For any species except species 1","One measure has same rhythm in all voices"]
[216,"Harmony","Suspension","Suspension resolution sounds simultaneously with suspension",":above sus",null,null,null,null,null,null,null,null,null,null,null,null,null,null,null,100,0,null,null,null,"Suspension resolution is above suspension"]
[217,"Harmony","Suspension","Suspension resolution sounds simultaneously with suspension",":below sus",null,null,null,null,null,null,null,null,null,null,null,null,null,null,null,100,0,null,null,null,"Suspension resolution is below suspension. Exception: starting from 5 voices, if there is a chord tone between suspension and suspension resolution, which sound simultaneously."]
[218,"Harmony","Suspension","Suspension resolution sounds simultaneously with suspension",":2nd",null,null,null,null,null,null,null,null,null,null,null,null,null,null,null,100,0,null,null,null,"2nd interval between suspension and suspension resolution. Does not include 9th interval and above"]
[219,"Harmony","Suspension","Wrong resolution of suspension",":up",null,null,null,null,null,null,null,null,null,null,null,null,null,null,null,100,0,null,null,null,"Suspension resolution up except for leading note (LT stepwize resolution up to tonic is allowed)"]
[220,"Harmony","Suspension","Wrong resolution of suspension",":unresolved",null,null,null,null,null,null,null,null,null,null,null,null,null,null,null,100,0]
[221,"Harmony","Suspension","Wrong resolution of suspension",":by leap",null,null,null,null,null,null,null,null,null,null,null,null,null,null,null,100,0,null,null,null,"Suspension resolution by leap"]
[222,"Harmony","Perfect consonance","Doubling of a tritone note","/doubling",null,null,null,null,null,null,null,null,null,null,null,null,null,null,null,0,0,null,null,null,"Doubling of one of tritone notes is prohibited if both tritone notes are chord tones and both exist in voices in current measure"]
[223,"Harmony","Dissonance","Misuse of a non-chord tone",":longer than previous chord tone",null,null,null,null,null,null,null,null,null,null,null,null,null,null,null,50,0,null,null,null,"Dissonance is longer than previous note"]
[224,"Harmony","Perfect consonance","Parallel 5ths: < measure apart","2 oblique",null,null,null,null,null,null,null,null,null,null,null,null,null,null,null,0,1,null,">4","Two same non-close perfect consonances in neighboring measures less than one measure and whole note length apart","Both intervals start in different voices on upbeat"]
[225,"Harmony","Perfect consonance","Parallel 8ves / unisons: < measure apart","2 oblique",null,null,null,null,null,null,null,null,null,null,null,null,null,null,null,0,1,null,">4","Two same non-close perfect consonances in neighboring measures less than one measure and whole note length apart","Both intervals start in different voices on upbeat"]
[226,"Rhythm","Rhythm","Wrong usage of eighth notes","1st beat",null,null,null,null,null,null,null,null,null,null,null,null,null,null,null,50,0,5,null,null,"1/8 note on beat 1"]
[227,"Rhythm","Rhythm","Wrong usage of eighth notes","2nd beat",null,null,null,null,null,null,null,null,null,null,null,null,null,null,null,0,1,5,null,null,"1/8 note on beat 2"]
[228,"Rhythm","Rhythm","Wrong usage of eighth notes","3rd beat",null,null,null,null,null,null,null,null,null,null,null,null,null,null,null,50,0,5,null,null,"1/8 note on beat 3"]
[229,"Rhythm","Rhythm","Wrong usage of eighth notes","4th beat",null,null,null,null,null,null,null,null,null,null,null,null,null,null,null,0,1,5,null,null,"1/8 note on beat 4"]
[230,"Rhythm","Rhythm","Beginning is non-standard","1/8 note",null,null,null,null,null,null,null,null,null,null,null,null,null,null,null,50,0,null,null,null,"1/8 note in the first measure"]
[231,"Rhythm","Rhythm","Wrong usage of eighth notes","isolated",null,null,null,null,null,null,null,null,null,null,null,null,null,null,null,50,0,5,null,null,"1/8 note without pairing 1/8"]
[232,"Rhythm","Rhythm","Wrong usage of eighth notes","1/8 syncope",null,null,null,null,null,null,null,null,null,null,null,null,null,null,null,50,0,5,null,null,"1/8 note slurred forward to next beat"]
[233,"Rhythm","Rhythm","Non-permitted rhythm","1/2. downbeat",null,null,null,null,null,null,null,null,null,null,null,null,null,null,null,0,1,5,null,"For species 5","Dotted half note on downbeat"]
[234,"Rhythm","Rhythm","Non-permitted rhythm","1/2. upbeat",null,null,null,null,null,null,null,null,null,null,null,null,null,null,null,50,0,5,null,"For species 5","Dotted half note on upbeat"]
[235,"Rhythm","Rhythm","Non-permitted rhythm","1/4 syncope",null,null,null,null,null,null,null,null,null,null,null,null,null,null,null,50,0,5,null,"For species 5","1/4 on beat 2 or 4 is slurred to next note"]
[236,"Rhythm","Rhythm","Non-permitted rhythm","rhythm stagnation",null,null,null,null,null,null,null,null,null,null,null,null,null,null,null,50,0,null,null,null,"Downbeat full measure note inside counterpoint - not first or last note"]
[237,"Rhythm","Rhythm","Missing rest","/no starting rest",null,null,null,null,null,null,null,null,null,null,null,null,null,null,null,50,0,null,null,"This rule is ignored if there is no cantus firmus","This species should start with a rest"]
[238,"Harmony","Consecutive 3rds, 4ths and 6ths","Too many consecutive harmonic 4ths","> 3",null,null,null,null,null,null,null,null,null,null,null,null,null,null,null,50,0,null,2,"More than AA 4ths in a row"]
[239,"Rhythm","Rhythm","Anapaest","tie forward",null,null,null,null,null,null,null,null,null,null,null,null,null,null,null,0,1,5,null,"1/2 after 1/4 or 1/8 in measure","1/2 is slurred forward"]
[240,"Rhythm","Rhythm","Anapaest","inside",null,null,null,null,null,null,null,null,null,null,null,null,null,null,null,50,0,5,null,"1/2 after 1/4 or 1/8 in measure","Before penultimate measure"]
[241,"Harmony","Border","Non-permitted first harmonic interval","M2",null,null,null,null,null,null,null,null,null,null,null,null,null,null,null,0,1]
[242,"Harmony","Border","Non-permitted first harmonic interval","m7",null,null,null,null,null,null,null,null,null,null,null,null,null,null,null,0,1]
[243,"Harmony","Border","Non-permitted first harmonic interval","M9",null,null,null,null,null,null,null,null,null,null,null,null,null,null,null,0,1]
[244,"Rhythm","Rhythm","Wrong suspension rhythm","sus wrong length",null,null,null,null,null,null,null,null,null,null,null,null,null,null,null,100,0,null,null,"Suspension preparation and suspension"]
[245,"Rhythm","Rhythm","Too many notes in one measure","5 notes without sus.",null,null,null,null,null,null,null,null,null,null,null,null,null,null,null,50,0,5]
[246,"Rhythm","Rhythm","Too many notes in one measure",">5 notes",null,null,null,null,null,null,null,null,null,null,null,null,null,null,null,100,0,5]
[247,"Rhythm","Rhythm","Same rhythm in adjacent measures","/same",null,null,null,null,null,null,null,null,null,null,null,null,null,null,null,50,0,null,null,null,"Rhythm repeats in neighboring measures, while there are no croches or less than 4 notes in measure"]
[248,"Harmony","Perfect consonance","Parallel 5ths: < measure apart","upbeat contrary",null,null,null,null,null,null,null,null,null,null,null,null,null,null,null,0,1,null,">4","Two same non-close perfect consonances in neighboring measures less than one measure and whole note length apart","Contrary movement between the two intervals, second interval is on upbeat, both notes of second interval do not start simultaneously"]
[249,"Harmony","Perfect consonance","Parallel 5ths: < measure apart","non-chord",null,null,null,null,null,null,null,null,null,null,null,null,null,null,null,0,1,null,">4","Two same non-close perfect consonances in neighboring measures less than one measure and whole note length apart","One of intervals is created by non-chord tone or chord tone in melodic position, second interval is on upbeat"]
[250,"Harmony","Perfect consonance","Parallel 5ths: < measure apart","upbeat",null,null,null,null,null,null,null,null,null,null,null,null,null,null,null,0,1,null,">4","Two same non-close perfect consonances in neighboring measures less than one measure and whole note length apart","If other rules for second interval on upbeat did not apply (upbeat, not oblique)"]
[251,"Harmony","Harmony","Two consecutive incomplete harmonies","/2",null,null,null,null,null,null,null,null,null,null,null,null,null,null,null,50,0,null,">3",null,"There should not be two consecutive harmonies, both lacking one of three chord tones on downbeat or PDD resolution or sus resolution"]
[252,"Harmony","Border","Non-permitted first harmonic interval","m2",null,null,null,null,null,null,null,null,null,null,null,null,null,null,null,50,0]
[253,"Harmony","Border","Non-permitted first harmonic interval","M7",null,null,null,null,null,null,null,null,null,null,null,null,null,null,null,50,0]
[254,"Harmony","Border","Non-permitted first harmonic interval","m9",null,null,null,null,null,null,null,null,null,null,null,null,null,null,null,50,0]
[255,"Rhythm","Rhythm","Wrong usage of eighth notes",">2 x 1/8",null,null,null,null,null,null,null,null,null,null,null,null,null,null,null,50,0,5,null,null,"More than two 1/8 notes in measure"]
[256,"Harmony","Nonchord tones","Cambiata","/any",null,null,null,null,null,null,null,null,null,null,null,null,null,null,null,0,1,null,null,null,"Prohibit this rule to prevent detection of any cambiata, thus processing as usual notes"]
[257,"Harmony","Nonchord tones","Neighbor tone dissonance on first beat","chord repeat",null,null,null,null,null,null,null,null,null,null,null,null,null,null,null,0,1]
[258,"Harmony","Nonchord tones","Double-neighbor tone","/any",null,null,null,null,null,null,null,null,null,null,null,null,null,null,null,0,1,null,null,null,"Prohibit this rule to prevent detection of any double-neighbour tone"]
[259,"Harmony","Perfect consonance","Parallel 5ths: < measure apart","different beats",null,null,null,null,null,null,null,null,null,null,null,null,null,null,null,0,1,null,">4","Two same non-close perfect consonances in neighboring measures less than one measure and whole note length apart","Both intervals start in different voices on upbeat"]
[260,"Harmony","Perfect consonance","Parallel 8ves / unisons: < measure apart","different beats",null,null,null,null,null,null,null,null,null,null,null,null,null,null,null,0,1,null,">4","Two same non-close perfect consonances in neighboring measures less than one measure and whole note length apart","Both intervals start in different voices on upbeat"]
[261,"Rhythm","Repeats and ties","Note repeat","/any",null,null,null,null,null,null,null,null,null,null,null,null,null,null,null,50,0,2345,null,"Note is repeated"]
[262,"Harmony","Perfect consonance","Similar motion to 5th in outer voices between chords","stepwise, not cadence",null,null,null,null,null,null,null,null,null,null,null,null,null,null,null,50,0,null,null,"Except similar motion between I64 and V chord","Direct movement to 5th with stepwise motion in upper voice: not in cadence"]
[263,"Harmony","Perfect consonance","Similar motion to unison between chords","stepwise, not cadence",null,null,null,null,null,null,null,null,null,null,null,null,null,null,null,50,0,null,null,null,"Direct movement to unison with stepwise motion in upper voice: not in cadence"]
[264,"Harmony","Perfect consonance","Similar motion to 8ve in outer voices between chords","stepwise, not cadence",null,null,null,null,null,null,null,null,null,null,null,null,null,null,null,50,0,null,null,null,"Direct movement to 8ve with stepwise motion in upper voice: not in cadence"]
[265,"Harmony","Harmony","Six-four chord",":in cadence",null,null,null,null,null,null,null,null,null,null,null,null,null,null,null,0,0,null,null,null,"6/4 chord on the first beat of penultimate measure or entire penpenultimate measure"]
[266,"Rhythm","Rhythm","Non-permitted rhythm","full-measure note inside",null,null,null,null,null,null,null,null,null,null,null,null,null,null,null,0,1,null,null,null,"Full measure note inside. In species 5 allowed only if other voices move"]
[267,"Melody","Uncompensated leap","Uncompensated leap in last 2 measures","3rd",null,null,null,null,null,null,null,null,null,null,null,null,null,null,null,0,-1,null,null,"Leap between penpenultimate and penultimate measure is not included in this rule."]
[268,"Melody","Uncompensated leap","Uncompensated leap in last 2 measures","4th",null,null,null,null,null,null,null,null,null,null,null,null,null,null,null,0,-1,null,null,"Leap between penpenultimate and penultimate measure is not included in this rule."]
[269,"Melody","Uncompensated leap","Uncompensated leap in last 2 measures","5th",null,null,null,null,null,null,null,null,null,null,null,null,null,null,null,0,-1,null,null,"Leap between penpenultimate and penultimate measure is not included in this rule."]
[270,"Melody","Uncompensated leap","Uncompensated leap in last 2 measures","6th",null,null,null,null,null,null,null,null,null,null,null,null,null,null,null,0,-1,null,null,"Leap between penpenultimate and penultimate measure is not included in this rule."]
[271,"Melody","Uncompensated leap","Uncompensated leap in last 2 measures","8ve",null,null,null,null,null,null,null,null,null,null,null,null,null,null,null,0,-1,null,null,"Leap between penpenultimate and penultimate measure is not included in this rule."]
[272,"Harmony","Harmony","7th chord","penultimate V7",null,null,null,null,null,null,null,null,null,null,null,null,null,null,null,0,1,null,">2",null,"V7 chord in any inversion in penultimate measure in 4 and more voices"]
[273,"Melody","Melodic minor","bVII note near VI# note","immediate",null,null,null,null,null,null,null,null,null,null,null,null,null,null,null,50,0,null,null,null,"Prohibited even if one or both notes are non-chord tones"]
[274,"Rhythm","Rhythm","Wrong suspension rhythm","prep wrong length",null,null,null,null,null,null,null,null,null,null,null,null,null,null,null,100,0,null,null,"Suspension preparation and suspension","Suspension preparation is too short for this time signature"]
[275,"Harmony","Perfect consonance","Unison",":follows m2",null,null,null,null,null,null,null,null,null,null,null,null,null,null,null,50,0,null,null,null,"Oblique motion from minor 2nd to unison"]
[276,"Harmony","Dissonance","Similar motion to dissonance between outer voices","M7",null,null,null,null,null,null,null,null,null,null,null,null,null,null,null,50,0,null,null,null,"Major 7th"]
[277,"Melody","Uncompensated leap","Uncompensated leap","3rd",null,null,null,null,null,null,null,null,null,null,null,null,null,null,null,0,-1,5,null,"If no other uncompensated rules worked."]
[278,"Melody","Uncompensated leap","Uncompensated leap","4th",null,null,null,null,null,null,null,null,null,null,null,null,null,null,null,0,-1,5,null,"If no other uncompensated rules worked."]
[279,"Melody","Uncompensated leap","Uncompensated leap","5th",null,null,null,null,null,null,null,null,null,null,null,null,null,null,null,50,0,5,null,"If no other uncompensated rules worked."]
[280,"Melody","Uncompensated leap","Uncompensated leap","6th",null,null,null,null,null,null,null,null,null,null,null,null,null,null,null,100,0,5,null,"If no other uncompensated rules worked."]
[281,"Melody","Uncompensated leap","Uncompensated leap","8ve",null,null,null,null,null,null,null,null,null,null,null,null,null,null,null,100,0,5,null,"If no other uncompensated rules worked."]
[282,"Harmony","Nonchord tones","Passing dissonance on first beat","/any",null,null,null,null,null,null,null,null,null,null,null,null,null,null,null,50,0,null,null,"In upper voice only","Set this rule to red to prevent PDD detection. Set to yellow to detect PDD only if there is no other way to explain harmony."]
[283,"Harmony","Suspension","Suspension resolution ornament","leap to resolution",null,null,null,null,null,null,null,null,null,null,null,null,null,null,null,50,0,null,null,null,"Leap from resolution ornament to resolution is longer than 8va"]
[284,"Harmony","Perfect consonance","Parallel 5ths: < measure apart","downbeat",null,null,null,null,null,null,null,null,null,null,null,null,null,null,null,100,0,null,">4","Two same non-close perfect consonances in neighboring measures less than one measure and whole note length apart","Second interval is on downbeat"]
[285,"Harmony","Dissonance","Harmonic tritone",":with lowest voice",null,null,null,null,null,null,null,null,null,null,null,null,null,null,null,50,0,null,null,"Allowed in penultimate measure","Tritone is prohibited between two chord tones with bass in major and melodic minor."]
[286,"Harmony","Suspension","Wrong resolution of suspension",":wrong beat",null,null,null,null,null,null,null,null,null,null,null,null,null,null,null,50,0,null,null,null,"Suspension is not resolved on allowed beat"]
[287,"Harmony","Nonchord tones","Anticipation","/any",null,null,null,null,null,null,null,null,null,null,null,null,null,null,null,50,0,null,"<3",null,"Prohibit this rule to prevent detection of any anticipation. By default allows stepwize anticipation in cadence with next note longer and previous note longer or equal"]
[288,"Harmony","Harmony","Repeated harmony","in changed inversion",null,null,null,null,null,null,null,null,null,null,null,null,null,null,null,0,0,null,null,"Harmonic stagnation","Chord is repeated, but inversion is changed"]
[291,"Harmony","Suspension","Wrong resolution of suspension","short",null,null,null,null,null,null,null,null,null,null,null,null,null,null,null,50,0,null,null,null,"If resolution note is shorter than 1/4"]
[292,"Harmony","Suspension","Suspension resolution ornament","chatty",null,null,null,null,null,null,null,null,null,null,null,null,null,null,null,50,0,null,null,null,"There are more than 2 notes in resolution ornament between suspension and resolution"]
[293,"Harmony","Voice motion","Voices are too far apart","> 12 semitones",null,null,null,null,null,null,null,null,null,null,null,null,null,null,null,0,-1]
[294,"Harmony","Voice motion","Voices are too far apart","> 16 semitones",null,null,null,null,null,null,null,null,null,null,null,null,null,null,null,0,-1]
[295,"Harmony","Suspension","Suspension resolution ornament","leap from sus",null,null,null,null,null,null,null,null,null,null,null,null,null,null,null,50,0,null,null,null,"Leap from suspension to resolution ornament is longer than 8ve"]
[296,"Melody","Change of melodic direction around leap","No change of direction after the leap: close + neigh","3rd",null,null,null,null,null,null,null,null,null,null,null,null,null,null,null,0,1,1,null,"There is immediate melody direction change before leap. After leap there is neighbor tone, then ending leap note repeats and then there is movement inside leap."]
[297,"Melody","Change of melodic direction around leap","No change of direction after the leap: close + neigh","4th",null,null,null,null,null,null,null,null,null,null,null,null,null,null,null,0,1,1,null,"There is immediate melody direction change before leap. After leap there is neighbor tone, then ending leap note repeats and then there is movement inside leap."]
[298,"Melody","Change of melodic direction around leap","No change of direction after the leap: close + neigh","5th",null,null,null,null,null,null,null,null,null,null,null,null,null,null,null,0,1,1,null,"There is immediate melody direction change before leap. After leap there is neighbor tone, then ending leap note repeats and then there is movement inside leap."]
[299,"Melody","Change of melodic direction around leap","No change of direction after the leap: close + neigh","6th",null,null,null,null,null,null,null,null,null,null,null,null,null,null,null,0,1,1,null,"There is immediate melody direction change before leap. After leap there is neighbor tone, then ending leap note repeats and then there is movement inside leap."]
[300,"Melody","Change of melodic direction around leap","No change of direction after the leap: close + neigh","8ve",null,null,null,null,null,null,null,null,null,null,null,null,null,null,null,0,1,1,null,"There is immediate melody direction change before leap. After leap there is neighbor tone, then ending leap note repeats and then there is movement inside leap."]
[301,"Rhythm","Rhythm","Too many notes in one measure","5 notes after sus.",null,null,null,null,null,null,null,null,null,null,null,null,null,null,null,0,1,5,null,null,"5 notes in measure only allowed if first note is a suspension from previous measure"]
[302,"Melody","Stepwise motion","Abuse of stepwise motion",">14 in any direction",null,null,null,null,null,null,null,null,null,null,null,null,null,null,null,0,0,35,null,null,"Stepwise motion more than AA notes in any direction"]
[303,"Melody","Stepwise motion","Abuse of unidirectional stepwise motion",">7 in one direction",null,null,null,null,null,null,null,null,null,null,null,null,null,null,null,50,0,5,null,null,"Stepwise motion more than AA notes in one direction"]
[304,"Melody","Compensated leap","8ve compensated only to 4th","8ve",null,null,null,null,null,null,null,null,null,null,null,null,null,null,null,50,0]
[305,"Melody","Melodic repeats","Melodic climax is repeated","in non-upper part",null,null,null,null,null,null,null,null,null,null,null,null,null,null,null,50,0,5,null,null,"Multiple culminations in non-upper voice"]
[306,"Rhythm","Rhythm","The length of last note is not full measure","/not full measure",null,null,null,null,null,null,null,null,null,null,null,null,null,null,null,50,0,1230]
[307,"Harmony","Perfect consonance","Unison",":follows M2",null,null,null,null,null,null,null,null,null,null,null,null,null,null,null,0,1,null,null,null,"Oblique motion from major 2nd to unison"]
[308,"Harmony","Harmony","Modulating progression","IV-VII (m)",null,null,null,null,null,null,null,null,null,null,null,null,null,null,null,50,0,null,null,null,"Prohibit VII (GBD) in root position after IV (DF#A) in root position in minor, because it is modulating"]
[309,"Harmony","Harmony","Modulating progression","VII-III (m)",null,null,null,null,null,null,null,null,null,null,null,null,null,null,null,0,0,null,null,null,"Prohibit III (CEG) in root position after VII (GBD) in root position in minor because it is modulating"]
[310,"Harmony","Harmony","Too many tonic chords",">2 within 9 mea.",null,null,null,null,null,null,null,null,null,null,null,null,null,null,null,0,0,null,null,null,"More than AA tonic chords within BB consecutive harmonies (except first and last tonic). At border without tonic - one more tonic is allowed. Inversion decreases 50%"]
[311,"Melody","Melodic repeats","Repetition - 3 notes are repeated 2 times","adjacent",null,null,null,null,null,null,null,null,null,null,null,null,null,null,null,0,0,null,null,"Repeat with the same rhythm (last note length is ignored)"]
[312,"Melody","Melodic repeats","Repetition - 4 notes are repeated 2 times","adjacent",null,null,null,null,null,null,null,null,null,null,null,null,null,null,null,0,0,null,null,"Repeat with the same rhythm (last note length is ignored)"]
[313,"Melody","Melodic repeats","Repetition - 3 notes are repeated 3 times","adjacent",null,null,null,null,null,null,null,null,null,null,null,null,null,null,null,50,0,null,null,"Repeat with the same rhythm (last note length is ignored)"]
[314,"Melody","Melodic repeats","Repetition - 4 notes are repeated 3 times","adjacent",null,null,null,null,null,null,null,null,null,null,null,null,null,null,null,50,0,null,null,"Repeat with the same rhythm (last note length is ignored)"]
[315,"Melody","Change of melodic direction around leap","No change of direction after the leap: close + 1skip","3rd",null,null,null,null,null,null,null,null,null,null,null,null,null,null,null,0,-1,1,null,"There is immediate melody direction change before leap, but after leap melody direction changes only after one note, which goes in the same direction as leap"]
[316,"Melody","Change of melodic direction around leap","No change of direction after the leap: close + 1skip","4th",null,null,null,null,null,null,null,null,null,null,null,null,null,null,null,0,-1,1,null,"There is immediate melody direction change before leap, but after leap melody direction changes only after one note, which goes in the same direction as leap"]
[317,"Melody","Change of melodic direction around leap","No change of direction after the leap: close + 1skip","5th",null,null,null,null,null,null,null,null,null,null,null,null,null,null,null,0,-1,1,null,"There is immediate melody direction change before leap, but after leap melody direction changes only after one note, which goes in the same direction as leap"]
[318,"Melody","Change of melodic direction around leap","No change of direction after the leap: close + 1skip","6th",null,null,null,null,null,null,null,null,null,null,null,null,null,null,null,50,0,1,null,"There is immediate melody direction change before leap, but after leap melody direction changes only after one note, which goes in the same direction as leap"]
[319,"Melody","Change of melodic direction around leap","No change of direction after the leap: close + 1skip","8ve",null,null,null,null,null,null,null,null,null,null,null,null,null,null,null,50,0,1,null,"There is immediate melody direction change before leap, but after leap melody direction changes only after one note, which goes in the same direction as leap"]
[321,"Harmony","Harmony","Repeated harmony",":three times",null,null,null,null,null,null,null,null,null,null,null,null,null,null,null,50,0,null,null,"Harmonic stagnation","Same chord is used 3 times consecutively"]
[324,"Harmony","Perfect consonance","Doubling of leading-tone","end of harmony",null,null,null,null,null,null,null,null,null,null,null,null,null,null,null,0,0,null,">4N",null,"Leading tone can be doubled if one of them is resolved up stepwise and another one is resolved down stepwise."]
[325,"Harmony","Perfect consonance","Culmination on 5th: long downbeat","/culmination",null,null,null,null,null,null,null,null,null,null,null,null,null,null,null,0,0,null,null,"Local culmination in upper voice within 4 measures in sp5. Sounds empty except last measure","Downbeat 5th 1/2 or longer"]
[326,"Harmony","Perfect consonance","Culmination on 8ve / unison: long downbeat","/culmination",null,null,null,null,null,null,null,null,null,null,null,null,null,null,null,0,0,null,null,"Local culmination in upper voice within 4 measures in sp5. Sounds empty except last measure","Downbeat octave 1/2 or longer"]
[327,"Melody","Change of melodic direction around leap","No change of direction after the leap: close + 2skip","3rd",null,null,null,null,null,null,null,null,null,null,null,null,null,null,null,0,-1,1,null,"There is immediate melody direction change before leap, but after leap melody direction changes only after two notes, which go in the same direction as leap"]
[328,"Melody","Change of melodic direction around leap","No change of direction after the leap: close + 2skip","4th",null,null,null,null,null,null,null,null,null,null,null,null,null,null,null,0,-1,1,null,"There is immediate melody direction change before leap, but after leap melody direction changes only after two notes, which go in the same direction as leap"]
[329,"Melody","Change of melodic direction around leap","No change of direction after the leap: close + 2skip","5th",null,null,null,null,null,null,null,null,null,null,null,null,null,null,null,50,0,1,null,"There is immediate melody direction change before leap, but after leap melody direction changes only after two notes, which go in the same direction as leap"]
[330,"Melody","Change of melodic direction around leap","No change of direction after the leap: close + 2skip","6th",null,null,null,null,null,null,null,null,null,null,null,null,null,null,null,100,0,1,null,"There is immediate melody direction change before leap, but after leap melody direction changes only after two notes, which go in the same direction as leap"]
[331,"Melody","Change of melodic direction around leap","No change of direction after the leap: close + 2skip","8ve",null,null,null,null,null,null,null,null,null,null,null,null,null,null,null,100,0,1,null,"There is immediate melody direction change before leap, but after leap melody direction changes only after two notes, which go in the same direction as leap"]
[335,"Harmony","Border","Penultimate chord",":no V or VII chord",null,null,null,null,null,null,null,null,null,null,null,null,null,null,null,50,0,12345,null,null,"Penultimate harmony is not V or VII"]
[336,"Melody","Change of melodic direction around leap","No change of direction after the leap: close + >2skip","3rd",null,null,null,null,null,null,null,null,null,null,null,null,null,null,null,0,-1,1,null,"There is immediate melody direction change before leap, but after leap melody direction changes after more than two notes, which go in the same direction as leap"]
[337,"Melody","Change of melodic direction around leap","No change of direction after the leap: close + >2skip","4th",null,null,null,null,null,null,null,null,null,null,null,null,null,null,null,0,0,1,null,"There is immediate melody direction change before leap, but after leap melody direction changes after more than two notes, which go in the same direction as leap"]
[338,"Melody","Change of melodic direction around leap","No change of direction after the leap: close + >2skip","5th",null,null,null,null,null,null,null,null,null,null,null,null,null,null,null,100,0,1,null,"There is immediate melody direction change before leap, but after leap melody direction changes after more than two notes, which go in the same direction as leap"]
[339,"Melody","Change of melodic direction around leap","No change of direction after the leap: close + >2skip","6th",null,null,null,null,null,null,null,null,null,null,null,null,null,null,null,100,0,1,null,"There is immediate melody direction change before leap, but after leap melody direction changes after more than two notes, which go in the same direction as leap"]
[340,"Melody","Change of melodic direction around leap","No change of direction after the leap: close + >2skip","8ve",null,null,null,null,null,null,null,null,null,null,null,null,null,null,null,100,0,1,null,"There is immediate melody direction change before leap, but after leap melody direction changes after more than two notes, which go in the same direction as leap"]
[341,"Rhythm","Rhythm","Need more suspensions","each 3 meas.",null,null,null,null,null,null,null,null,null,null,null,null,null,null,null,0,0,null,null,null,"At least one suspension is needed each AA measures {sp5}"]
[342,"Melody","Tritone","Audible tritone: accented",":resolved",null,null,null,null,null,null,null,null,null,null,null,null,null,null,null,0,0,2345,null,"Tritone within measure with intermediate notes, last note is long or repeated"]
[343,"Melody","Tritone","Audible tritone: accented",":unresolved",null,null,null,null,null,null,null,null,null,null,null,null,null,null,null,50,0,2345,null,"Tritone within measure with intermediate notes, last note is long or repeated"]
[344,"Melody","Melodic repeats","Notes stagnation","5 notes <3 pitches",null,null,null,null,null,null,null,null,null,null,null,null,null,null,null,0,0,null,null,null,"AA consecutive notes use less than BB pitches"]
[345,"Melody","Melodic repeats","Notes stagnation","7 notes <4 pitches",null,null,null,null,null,null,null,null,null,null,null,null,null,null,null,0,0,null,null,null,"AA consecutive notes use less than BB pitches"]
[346,"Melody","Melodic repeats","Notes stagnation","17 notes <6 pitches",null,null,null,null,null,null,null,null,null,null,null,null,null,null,null,0,0,null,null,null,"AA consecutive notes use less than BB pitches"]
[348,"Melody","Melodic repeats","Octave leap to the leading tone","/LT 8ve leap",null,null,null,null,null,null,null,null,null,null,null,null,null,null,null,50,0,null,null,null,"Octave leap from or to leading tone "]
[349,"Melody","Melodic minor","bVII note near VI# note","4 notes before",null,null,null,null,null,null,null,null,null,null,null,null,null,null,null,0,1,null,null,null,"AA notes before VI#"]
[350,"Melody","Melodic minor","bVII note near VI# note","4 notes after",null,null,null,null,null,null,null,null,null,null,null,null,null,null,null,0,1,null,null,null,"AA notes after VI#"]
[351,"Melody","Change of melodic direction around leap","No change of direction before the leap: neigh + close","3rd",null,null,null,null,null,null,null,null,null,null,null,null,null,null,null,0,1,1,null,"There is immediate melody direction change after leap. Before leap there is neighbor tone, then ending leap note repeats and then there is movement inside leap."]
[352,"Melody","Change of melodic direction around leap","No change of direction before the leap: neigh + close","4th",null,null,null,null,null,null,null,null,null,null,null,null,null,null,null,0,1,1,null,"There is immediate melody direction change after leap. Before leap there is neighbor tone, then ending leap note repeats and then there is movement inside leap."]
[353,"Melody","Change of melodic direction around leap","No change of direction before the leap: neigh + close","5th",null,null,null,null,null,null,null,null,null,null,null,null,null,null,null,0,1,1,null,"There is immediate melody direction change after leap. Before leap there is neighbor tone, then ending leap note repeats and then there is movement inside leap."]
[354,"Melody","Change of melodic direction around leap","No change of direction before the leap: neigh + close","6th",null,null,null,null,null,null,null,null,null,null,null,null,null,null,null,0,1,1,null,"There is immediate melody direction change after leap. Before leap there is neighbor tone, then ending leap note repeats and then there is movement inside leap."]
[355,"Melody","Change of melodic direction around leap","No change of direction before the leap: neigh + close","8ve",null,null,null,null,null,null,null,null,null,null,null,null,null,null,null,0,1,1,null,"There is immediate melody direction change after leap. Before leap there is neighbor tone, then ending leap note repeats and then there is movement inside leap."]
[360,"Melody","Tritone","Tritone: adjacent accented",":resolved",null,null,null,null,null,null,null,null,null,null,null,null,null,null,null,50,0,2345,null,"Melodic adjacent tritone, last note is long or repeated"]
[361,"Melody","Tritone","Tritone: adjacent accented",":unresolved",null,null,null,null,null,null,null,null,null,null,null,null,null,null,null,100,0,2345,null,"Melodic adjacent tritone, last note is long or repeated"]
[365,"Melody","Tritone","Tritone: adjacent framed",":resolved",null,null,null,null,null,null,null,null,null,null,null,null,null,null,null,50,0,2345,null,"Melodic adjacent tritone, framed by two melody direction changes"]
[366,"Melody","Tritone","Tritone: adjacent framed",":unresolved",null,null,null,null,null,null,null,null,null,null,null,null,null,null,null,100,0,2345,null,"Melodic adjacent tritone, framed by two melody direction changes"]
[368,"Melody","Tritone","Tritone: adjacent",":resolved",null,null,null,null,null,null,null,null,null,null,null,null,null,null,null,50,0,2345,null,"Melodic adjacent tritone, not accented or framed"]
[369,"Melody","Tritone","Tritone: adjacent",":unresolved",null,null,null,null,null,null,null,null,null,null,null,null,null,null,null,100,0,2345,null,"Melodic adjacent tritone, not accented or framed"]
[371,"Melody","Tritone","Audible tritone: framed",":resolved",null,null,null,null,null,null,null,null,null,null,null,null,null,null,null,0,0,10,null,"Melodic tritone with one intermediate note, framed by two melody direction changes or leaps"]
[372,"Melody","Tritone","Audible tritone: framed",":unresolved",null,null,null,null,null,null,null,null,null,null,null,null,null,null,null,50,0,10,null,"Melodic tritone with one intermediate note, framed by two melody direction changes or leaps"]
[375,"Harmony","Harmony","Augmented chord","DTIII",null,null,null,null,null,null,null,null,null,null,null,null,null,null,null,50,0]
[376,"Harmony","Perfect consonance","Parallel 5ths: < measure apart","last contrary",null,null,null,null,null,null,null,null,null,null,null,null,null,null,null,0,1,null,">4","Two same non-close perfect consonances in neighboring measures less than one measure and whole note length apart","Contrary movement to last interval in counterpoint"]
[377,"Harmony","Melodic minor","False chromatic relation: in outer voices","VI<->VI#",null,null,null,null,null,null,null,null,null,null,null,null,null,null,null,100,0,null,null,"These two notes are harmonic tones in neighboring harmonies, but are in different voices"]
[378,"Harmony","Melodic minor","False chromatic relation: in outer voices","VII<->VII#",null,null,null,null,null,null,null,null,null,null,null,null,null,null,null,100,0,null,null,"These two notes are harmonic tones in neighboring harmonies, but are in different voices"]
[379,"Harmony","Dissonance","Unresolved harmonic tritone","/unresolved",null,null,null,null,null,null,null,null,null,null,null,null,null,null,null,50,0]
[383,"Harmony","Harmony","Six-four chord",":audible",null,null,null,null,null,null,null,null,null,null,null,null,null,null,null,50,0,null,null,null,"6/4 chord with non-repeating lowest 5th on beat 2 or 4"]
[385,"Harmony","Perfect consonance","Parallel 5ths: < measure apart","sus harm",null,null,null,null,null,null,null,null,null,null,null,null,null,null,null,0,0,null,">4","Two same non-close perfect consonances in neighboring measures less than one measure and whole note length apart","Second interval is formed by harmonic suspension on downbeat"]
[386,"Melody","Compensated leap","Uncompensated leap: compensation deviation to 2nd",">5th long",null,null,null,null,null,null,null,null,null,null,null,null,null,null,null,100,0,5,null,"Compensation can be deviated one 2nd interval above last leap note","Deviation longer than 1/4 note (in species 5)"]
[387,"Harmony","Suspension","Wrong usage of sus. in 2nd sp.","I -> LT penultimate measure",null,null,null,null,null,null,null,null,null,null,null,null,null,null,null,0,1,null,null,null,"Suspension of LT by I note in penultimate measure in sp2"]
[388,"Harmony","Suspension","Wrong usage of sus. in 2nd sp.","not I -> LT penultimate measure",null,null,null,null,null,null,null,null,null,null,null,null,null,null,null,50,0,null,null,null,"Other suspension than LT by I note in penultimate measure in sp2"]
[389,"Melody","Change of melodic direction around leap","No change of direction before the leap: 1skip + close","3rd",null,null,null,null,null,null,null,null,null,null,null,null,null,null,null,0,1,1,null,"There is immediate melody direction change after leap, but before leap melody direction changes after one note, which goes in the same direction as leap"]
[390,"Melody","Change of melodic direction around leap","No change of direction before the leap: 1skip + close","4th",null,null,null,null,null,null,null,null,null,null,null,null,null,null,null,0,1,1,null,"There is immediate melody direction change after leap, but before leap melody direction changes after one note, which goes in the same direction as leap"]
[391,"Melody","Change of melodic direction around leap","No change of direction before the leap: 1skip + close","5th",null,null,null,null,null,null,null,null,null,null,null,null,null,null,null,0,1,1,null,"There is immediate melody direction change after leap, but before leap melody direction changes after one note, which goes in the same direction as leap"]
[392,"Melody","Change of melodic direction around leap","No change of direction before the leap: 1skip + close","6th",null,null,null,null,null,null,null,null,null,null,null,null,null,null,null,0,1,1,null,"There is immediate melody direction change after leap, but before leap melody direction changes after one note, which goes in the same direction as leap"]
[393,"Melody","Change of melodic direction around leap","No change of direction before the leap: 1skip + close","8ve",null,null,null,null,null,null,null,null,null,null,null,null,null,null,null,50,0,1,null,"There is immediate melody direction change after leap, but before leap melody direction changes after one note, which goes in the same direction as leap"]
[394,"Melody","Change of melodic direction around leap","No change of direction before the leap: >1skip + close","3rd",null,null,null,null,null,null,null,null,null,null,null,null,null,null,null,0,-1,1,null,"There is immediate melody direction change after leap, but before leap melody direction changes after more than one note, which go in the same direction as leap"]
[395,"Melody","Change of melodic direction around leap","No change of direction before the leap: >1skip + close","4th",null,null,null,null,null,null,null,null,null,null,null,null,null,null,null,0,1,1,null,"There is immediate melody direction change after leap, but before leap melody direction changes after more than one note, which go in the same direction as leap"]
[396,"Melody","Change of melodic direction around leap","No change of direction before the leap: >1skip + close","5th",null,null,null,null,null,null,null,null,null,null,null,null,null,null,null,0,1,1,null,"There is immediate melody direction change after leap, but before leap melody direction changes after more than one note, which go in the same direction as leap"]
[397,"Melody","Change of melodic direction around leap","No change of direction before the leap: >1skip + close","6th",null,null,null,null,null,null,null,null,null,null,null,null,null,null,null,0,1,1,null,"There is immediate melody direction change after leap, but before leap melody direction changes after more than one note, which go in the same direction as leap"]
[398,"Melody","Change of melodic direction around leap","No change of direction before the leap: >1skip + close","8ve",null,null,null,null,null,null,null,null,null,null,null,null,null,null,null,100,0,1,null,"There is immediate melody direction change after leap, but before leap melody direction changes after more than one note, which go in the same direction as leap"]
[402,"Melody","Melodic repeats","Repetition - 2 notes are repeated: immediate","uniform",null,null,null,null,null,null,null,null,null,null,null,null,null,null,null,0,0,5,null,"Two adjacent notes are immediately repeated","Length of first three notes is the same"]
[403,"Melody","Melodic repeats","Repetition - 2 notes are repeated: immediate","same rhythm",null,null,null,null,null,null,null,null,null,null,null,null,null,null,null,0,0,5,null,"Two adjacent notes are immediately repeated","Length of first and third notes is the same"]
[404,"Melody","Melodic repeats","Repetition - 2 notes are repeated: immediate","any rhythm",null,null,null,null,null,null,null,null,null,null,null,null,null,null,null,0,1,5,null,"Two adjacent notes are immediately repeated"]
[405,"Melody","Melodic repeats","Repetition - 3 notes are repeated 2 times","symmetric",null,null,null,null,null,null,null,null,null,null,null,null,null,null,null,0,0,null,null,"Repeat with the same rhythm (last note length is ignored)","Non-adjacent repeat in sp2-5"]
[406,"Melody","Melodic repeats","Repetition - 4 notes are repeated 2 times","symmetric",null,null,null,null,null,null,null,null,null,null,null,null,null,null,null,0,0,null,null,"Repeat with the same rhythm (last note length is ignored)","Non-adjacent repeat in sp2-5"]
[407,"Melody","Melodic repeats","Repetition - 3 notes are repeated 3 times","symmetric",null,null,null,null,null,null,null,null,null,null,null,null,null,null,null,50,0,null,null,"Repeat with the same rhythm (last note length is ignored)","Non-adjacent repeat in sp2-5"]
[408,"Melody","Melodic repeats","Repetition - 4 notes are repeated 3 times","symmetric",null,null,null,null,null,null,null,null,null,null,null,null,null,null,null,50,0,null,null,"Repeat with the same rhythm (last note length is ignored)","Non-adjacent repeat in sp2-5"]
[411,"Melody","Melodic repeats","Repetition - 2 notes are repeated: immediate IM","uniform",null,null,null,null,null,null,null,null,null,null,null,null,null,null,null,50,0,5,null,"Two adjacent notes are immediately repeated inside one measure","Length of first three notes is the same"]
[412,"Melody","Melodic repeats","Repetition - 2 notes are repeated: immediate IM","same rhythm",null,null,null,null,null,null,null,null,null,null,null,null,null,null,null,50,0,5,null,"Two adjacent notes are immediately repeated inside one measure","Length of first and third notes is the same"]
[413,"Melody","Melodic repeats","Repetition - 2 notes are repeated: immediate IM","any rhythm",null,null,null,null,null,null,null,null,null,null,null,null,null,null,null,0,0,5,null,"Two adjacent notes are immediately repeated inside one measure"]
[414,"Melody","Change of melodic direction around leap","No change of direction before and after the leap: 1skip + 1skip","3rd",null,null,null,null,null,null,null,null,null,null,null,null,null,null,null,0,1,12350,null,"There is one note going in the same direction before and after leap"]
[415,"Melody","Change of melodic direction around leap","No change of direction before and after the leap: 1skip + 1skip","4th",null,null,null,null,null,null,null,null,null,null,null,null,null,null,null,0,0,12350,null,"There is one note going in the same direction before and after leap"]
[416,"Melody","Change of melodic direction around leap","No change of direction before and after the leap: 1skip + 1skip","5th",null,null,null,null,null,null,null,null,null,null,null,null,null,null,null,50,0,12350,null,"There is one note going in the same direction before and after leap"]
[417,"Melody","Change of melodic direction around leap","No change of direction before and after the leap: 1skip + 1skip","6th",null,null,null,null,null,null,null,null,null,null,null,null,null,null,null,100,0,12350,null,"There is one note going in the same direction before and after leap"]
[418,"Melody","Change of melodic direction around leap","No change of direction before and after the leap: 1skip + 1skip","8ve",null,null,null,null,null,null,null,null,null,null,null,null,null,null,null,100,0,12350,null,"There is one note going in the same direction before and after leap"]
[419,"Harmony","Suspension","Wrong resolution of suspension","on beat 2",null,null,null,null,null,null,null,null,null,null,null,null,null,null,null,0,1,null,null,null,"Allows resolution to beat 2"]
[420,"Harmony","Suspension","Wrong resolution of suspension","on beat 4",null,null,null,null,null,null,null,null,null,null,null,null,null,null,null,0,1,null,null,null,"Allows resolution to beat 4"]
[421,"Melody","Change of melodic direction around leap","No change of direction before and after the leap: 1skip + >1skip","3rd",null,null,null,null,null,null,null,null,null,null,null,null,null,null,null,0,1,12350,null,"There is one note going in the same direction before leap and more than one note going in the same direction after leap"]
[422,"Melody","Change of melodic direction around leap","No change of direction before and after the leap: 1skip + >1skip","4th",null,null,null,null,null,null,null,null,null,null,null,null,null,null,null,0,0,12350,null,"There is one note going in the same direction before leap and more than one note going in the same direction after leap"]
[423,"Melody","Change of melodic direction around leap","No change of direction before and after the leap: 1skip + >1skip","5th",null,null,null,null,null,null,null,null,null,null,null,null,null,null,null,50,0,12350,null,"There is one note going in the same direction before leap and more than one note going in the same direction after leap"]
[424,"Melody","Change of melodic direction around leap","No change of direction before and after the leap: 1skip + >1skip","6th",null,null,null,null,null,null,null,null,null,null,null,null,null,null,null,100,0,12350,null,"There is one note going in the same direction before leap and more than one note going in the same direction after leap"]
[425,"Melody","Change of melodic direction around leap","No change of direction before and after the leap: 1skip + >1skip","8ve",null,null,null,null,null,null,null,null,null,null,null,null,null,null,null,100,0,12350,null,"There is one note going in the same direction before leap and more than one note going in the same direction after leap"]
[427,"Rhythm","Rhythm","Wrong suspension rhythm","prep < sus",null,null,null,null,null,null,null,null,null,null,null,null,null,null,null,100,0,null,null,"Suspension preparation and suspension","Suspension preparation is shorter than suspension"]
[428,"Harmony","Harmony","Repeating functions in a row",">4 D",null,null,null,null,null,null,null,null,null,null,null,null,null,null,null,0,0,null,null,"More than AA consecutive harmonies all have this letter"]
[429,"Harmony","Harmony","Repeating functions in a row",">4 S",null,null,null,null,null,null,null,null,null,null,null,null,null,null,null,0,0,null,null,"More than AA consecutive harmonies all have this letter"]
[430,"Harmony","Harmony","Missing functions in a row",">5 without D",null,null,null,null,null,null,null,null,null,null,null,null,null,null,null,0,0,null,null,"More than AA consecutive harmonies do not have this letter"]
[431,"Harmony","Harmony","Missing functions in a row",">6 without S",null,null,null,null,null,null,null,null,null,null,null,null,null,null,null,0,0,null,null,"More than AA consecutive harmonies do not have this letter"]
[432,"Melody","Melodic minor","Dim or aug melodic interval","III-VII#-I down",null,null,null,null,null,null,null,null,null,null,null,null,null,null,null,0,1,null,null,null,"III-VII# downward notes, then I note"]
[433,"Harmony","Harmony","Six-four chord","real",null,null,null,null,null,null,null,null,null,null,null,null,null,null,null,100,0,null,null,null,"6/4 chord with lowest 5th on beat 1 or 3"]
[434,"Melody","Range","Stagnation","5 notes <m3",null,null,null,null,null,null,null,null,null,null,null,null,null,null,null,100,0,5,null,null,"AA consecutive notes have total range less than interval BB"]
[435,"Melody","Range","Stagnation","9 notes <4th",null,null,null,null,null,null,null,null,null,null,null,null,null,null,null,50,0,5,null,null,"AA consecutive notes have total pitch range less than interval BB"]
[436,"Melody","Range","Stagnation","14 notes <5th",null,null,null,null,null,null,null,null,null,null,null,null,null,null,null,50,0,5,null,null,"AA consecutive notes have total pitch range less than interval BB"]
[437,"Melody","Range","Stagnation","19 notes <m6",null,null,null,null,null,null,null,null,null,null,null,null,null,null,null,0,0,5,null,null,"AA consecutive notes have total pitch range less than interval BB"]
[438,"Melody","Change of melodic direction around leap","No change of direction before and after the leap: >1skip + 1skip","3rd",null,null,null,null,null,null,null,null,null,null,null,null,null,null,null,0,1,12350,null,"There is more than one note going in the same direction before leap and one note going in the same direction after leap"]
[439,"Melody","Change of melodic direction around leap","No change of direction before and after the leap: >1skip + 1skip","4th",null,null,null,null,null,null,null,null,null,null,null,null,null,null,null,0,0,12350,null,"There is more than one note going in the same direction before leap and one note going in the same direction after leap"]
[440,"Melody","Change of melodic direction around leap","No change of direction before and after the leap: >1skip + 1skip","5th",null,null,null,null,null,null,null,null,null,null,null,null,null,null,null,100,0,12350,null,"There is more than one note going in the same direction before leap and one note going in the same direction after leap"]
[441,"Melody","Change of melodic direction around leap","No change of direction before and after the leap: >1skip + 1skip","6th",null,null,null,null,null,null,null,null,null,null,null,null,null,null,null,100,0,12350,null,"There is more than one note going in the same direction before leap and one note going in the same direction after leap"]
[442,"Melody","Change of melodic direction around leap","No change of direction before and after the leap: >1skip + 1skip","8ve",null,null,null,null,null,null,null,null,null,null,null,null,null,null,null,100,0,12350,null,"There is more than one note going in the same direction before leap and one note going in the same direction after leap"]
[443,"Melody","Change of melodic direction around leap","No change of direction before and after the leap: >1skip + >1skip","3rd",null,null,null,null,null,null,null,null,null,null,null,null,null,null,null,0,1,12350,null,"There is more than one note going in the same direction before leap and more than one note going in the same direction after leap"]
[444,"Melody","Change of melodic direction around leap","No change of direction before and after the leap: >1skip + >1skip","4th",null,null,null,null,null,null,null,null,null,null,null,null,null,null,null,0,0,12350,null,"There is more than one note going in the same direction before leap and more than one note going in the same direction after leap"]
[445,"Melody","Change of melodic direction around leap","No change of direction before and after the leap: >1skip + >1skip","5th",null,null,null,null,null,null,null,null,null,null,null,null,null,null,null,100,0,12350,null,"There is more than one note going in the same direction before leap and more than one note going in the same direction after leap"]
[446,"Melody","Change of melodic direction around leap","No change of direction before and after the leap: >1skip + >1skip","6th",null,null,null,null,null,null,null,null,null,null,null,null,null,null,null,100,0,12350,null,"There is more than one note going in the same direction before leap and more than one note going in the same direction after leap"]
[447,"Melody","Change of melodic direction around leap","No change of direction before and after the leap: >1skip + >1skip","8ve",null,null,null,null,null,null,null,null,null,null,null,null,null,null,null,100,0,12350,null,"There is more than one note going in the same direction before leap and more than one note going in the same direction after leap"]
[448,"Melody","Change of melodic direction around leap","No change of direction before and after the leap: neigh + neigh","3rd",null,null,null,null,null,null,null,null,null,null,null,null,null,null,null,0,1,35,null,"Before and after leap there is neighbor tone, then ending leap note repeats and then there is movement inside leap."]
[449,"Melody","Change of melodic direction around leap","No change of direction before and after the leap: neigh + neigh","4th",null,null,null,null,null,null,null,null,null,null,null,null,null,null,null,0,1,35,null,"Before and after leap there is neighbor tone, then ending leap note repeats and then there is movement inside leap."]
[450,"Melody","Change of melodic direction around leap","No change of direction before and after the leap: neigh + neigh","5th",null,null,null,null,null,null,null,null,null,null,null,null,null,null,null,0,1,35,null,"Before and after leap there is neighbor tone, then ending leap note repeats and then there is movement inside leap."]
[451,"Melody","Change of melodic direction around leap","No change of direction before and after the leap: neigh + neigh","6th",null,null,null,null,null,null,null,null,null,null,null,null,null,null,null,0,1,35,null,"Before and after leap there is neighbor tone, then ending leap note repeats and then there is movement inside leap."]
[452,"Melody","Change of melodic direction around leap","No change of direction before and after the leap: neigh + neigh","8ve",null,null,null,null,null,null,null,null,null,null,null,null,null,null,null,0,1,35,null,"Before and after leap there is neighbor tone, then ending leap note repeats and then there is movement inside leap."]
[453,"Melody","Change of melodic direction around leap","No change of direction before the leap between measures: 1skip + close","3rd",null,null,null,null,null,null,null,null,null,null,null,null,null,null,null,0,0,12350,null,"There is immediate melody direction change after leap, but before leap melody direction changes after one note, which goes in the same direction as leap (allowed between harmonies with same root except I or I6 -> I64, allowed between I64 -> V)"]
[454,"Melody","Change of melodic direction around leap","No change of direction before the leap between measures: 1skip + close","4th",null,null,null,null,null,null,null,null,null,null,null,null,null,null,null,0,0,12350,null,"There is immediate melody direction change after leap, but before leap melody direction changes after one note, which goes in the same direction as leap (allowed between harmonies with same root except I or I6 -> I64, allowed between I64 -> V)"]
[455,"Melody","Change of melodic direction around leap","No change of direction before the leap between measures: 1skip + close","5th",null,null,null,null,null,null,null,null,null,null,null,null,null,null,null,0,0,12350,null,"There is immediate melody direction change after leap, but before leap melody direction changes after one note, which goes in the same direction as leap (allowed between harmonies with same root except I or I6 -> I64, allowed between I64 -> V)"]
[456,"Melody","Change of melodic direction around leap","No change of direction before the leap between measures: 1skip + close","6th",null,null,null,null,null,null,null,null,null,null,null,null,null,null,null,50,0,12350,null,"There is immediate melody direction change after leap, but before leap melody direction changes after one note, which goes in the same direction as leap (allowed between harmonies with same root except I or I6 -> I64, allowed between I64 -> V)"]
[457,"Melody","Change of melodic direction around leap","No change of direction before the leap between measures: 1skip + close","8ve",null,null,null,null,null,null,null,null,null,null,null,null,null,null,null,50,0,12350,null,"There is immediate melody direction change after leap, but before leap melody direction changes after one note, which goes in the same direction as leap (allowed between harmonies with same root except I or I6 -> I64, allowed between I64 -> V)"]
[458,"Harmony","Suspension","Suspension prepared by dissonance","/diss. prep",null,null,null,null,null,null,null,null,null,null,null,null,null,null,null,100,0,null,null,null,"Suspension starts with dissonance"]
[459,"Melody","Change of melodic direction around leap","No change of direction before the leap between measures: >1skip + close","3rd",null,null,null,null,null,null,null,null,null,null,null,null,null,null,null,0,0,12350,null,"There is immediate melody direction change after leap, but before leap melody direction changes after more than one note, which go in the same direction as leap (allowed between harmonies with same root except I or I6 -> I64, allowed between I64 -> V)"]
[460,"Melody","Change of melodic direction around leap","No change of direction before the leap between measures: >1skip + close","4th",null,null,null,null,null,null,null,null,null,null,null,null,null,null,null,0,0,12350,null,"There is immediate melody direction change after leap, but before leap melody direction changes after more than one note, which go in the same direction as leap (allowed between harmonies with same root except I or I6 -> I64, allowed between I64 -> V)"]
[461,"Melody","Change of melodic direction around leap","No change of direction before the leap between measures: >1skip + close","5th",null,null,null,null,null,null,null,null,null,null,null,null,null,null,null,0,0,12350,null,"There is immediate melody direction change after leap, but before leap melody direction changes after more than one note, which go in the same direction as leap (allowed between harmonies with same root except I or I6 -> I64, allowed between I64 -> V)"]
[462,"Melody","Change of melodic direction around leap","No change of direction before the leap between measures: >1skip + close","6th",null,null,null,null,null,null,null,null,null,null,null,null,null,null,null,50,0,12350,null,"There is immediate melody direction change after leap, but before leap melody direction changes after more than one note, which go in the same direction as leap (allowed between harmonies with same root except I or I6 -> I64, allowed between I64 -> V)"]
[463,"Melody","Change of melodic direction around leap","No change of direction before the leap between measures: >1skip + close","8ve",null,null,null,null,null,null,null,null,null,null,null,null,null,null,null,50,0,12350,null,"There is immediate melody direction change after leap, but before leap melody direction changes after more than one note, which go in the same direction as leap (allowed between harmonies with same root except I or I6 -> I64, allowed between I64 -> V)"]
[464,"Melody","Change of melodic direction around leap","No change of direction before the leap between measures: 1skip + 1skip","3rd",null,null,null,null,null,null,null,null,null,null,null,null,null,null,null,50,0,12350,null,"Turns around leap on measure border. There is one note going in the same direction before and after leap (allowed between harmonies with same root except I or I6 -> I64, allowed between I64 -> V)"]
[465,"Melody","Change of melodic direction around leap","No change of direction before the leap between measures: 1skip + 1skip","4th",null,null,null,null,null,null,null,null,null,null,null,null,null,null,null,50,0,12350,null,"Turns around leap on measure border. There is one note going in the same direction before and after leap (allowed between harmonies with same root except I or I6 -> I64, allowed between I64 -> V)"]
[466,"Melody","Change of melodic direction around leap","No change of direction before the leap between measures: 1skip + 1skip","5th",null,null,null,null,null,null,null,null,null,null,null,null,null,null,null,100,0,12350,null,"Turns around leap on measure border. There is one note going in the same direction before and after leap (allowed between harmonies with same root except I or I6 -> I64, allowed between I64 -> V)"]
[467,"Melody","Change of melodic direction around leap","No change of direction before the leap between measures: 1skip + 1skip","6th",null,null,null,null,null,null,null,null,null,null,null,null,null,null,null,100,0,12350,null,"Turns around leap on measure border. There is one note going in the same direction before and after leap (allowed between harmonies with same root except I or I6 -> I64, allowed between I64 -> V)"]
[468,"Melody","Change of melodic direction around leap","No change of direction before the leap between measures: 1skip + 1skip","8ve",null,null,null,null,null,null,null,null,null,null,null,null,null,null,null,100,0,12350,null,"Turns around leap on measure border. There is one note going in the same direction before and after leap (allowed between harmonies with same root except I or I6 -> I64, allowed between I64 -> V)"]
[469,"Melody","Change of melodic direction around leap","No change of direction before the leap between measures: 1skip + >1skip","3rd",null,null,null,null,null,null,null,null,null,null,null,null,null,null,null,50,0,12350,null,"Turns around leap on measure border. There is one note going in the same direction before leap and more than one note going in the same direction after leap (allowed between harmonies with same root except I or I6 -> I64, allowed between I64 -> V)"]
[470,"Melody","Change of melodic direction around leap","No change of direction before the leap between measures: 1skip + >1skip","4th",null,null,null,null,null,null,null,null,null,null,null,null,null,null,null,50,0,12350,null,"Turns around leap on measure border. There is one note going in the same direction before leap and more than one note going in the same direction after leap (allowed between harmonies with same root except I or I6 -> I64, allowed between I64 -> V)"]
[471,"Melody","Change of melodic direction around leap","No change of direction before the leap between measures: 1skip + >1skip","5th",null,null,null,null,null,null,null,null,null,null,null,null,null,null,null,100,0,12350,null,"Turns around leap on measure border. There is one note going in the same direction before leap and more than one note going in the same direction after leap (allowed between harmonies with same root except I or I6 -> I64, allowed between I64 -> V)"]
[472,"Melody","Change of melodic direction around leap","No change of direction before the leap between measures: 1skip + >1skip","6th",null,null,null,null,null,null,null,null,null,null,null,null,null,null,null,100,0,12350,null,"Turns around leap on measure border. There is one note going in the same direction before leap and more than one note going in the same direction after leap (allowed between harmonies with same root except I or I6 -> I64, allowed between I64 -> V)"]
[473,"Melody","Change of melodic direction around leap","No change of direction before the leap between measures: 1skip + >1skip","8ve",null,null,null,null,null,null,null,null,null,null,null,null,null,null,null,100,0,12350,null,"Turns around leap on measure border. There is one note going in the same direction before leap and more than one note going in the same direction after leap (allowed between harmonies with same root except I or I6 -> I64, allowed between I64 -> V)"]
[474,"Melody","Change of melodic direction around leap","No change of direction before the leap between measures: >1skip + 1skip","3rd",null,null,null,null,null,null,null,null,null,null,null,null,null,null,null,50,0,12350,null,"Turns around leap on measure border. There is more than one note going in the same direction before leap and one note going in the same direction after leap (allowed between harmonies with same root except I or I6 -> I64, allowed between I64 -> V)"]
[475,"Melody","Change of melodic direction around leap","No change of direction before the leap between measures: >1skip + 1skip","4th",null,null,null,null,null,null,null,null,null,null,null,null,null,null,null,50,0,12350,null,"Turns around leap on measure border. There is more than one note going in the same direction before leap and one note going in the same direction after leap (allowed between harmonies with same root except I or I6 -> I64, allowed between I64 -> V)"]
[476,"Melody","Change of melodic direction around leap","No change of direction before the leap between measures: >1skip + 1skip","5th",null,null,null,null,null,null,null,null,null,null,null,null,null,null,null,100,0,12350,null,"Turns around leap on measure border. There is more than one note going in the same direction before leap and one note going in the same direction after leap (allowed between harmonies with same root except I or I6 -> I64, allowed between I64 -> V)"]
[477,"Melody","Change of melodic direction around leap","No change of direction before the leap between measures: >1skip + 1skip","6th",null,null,null,null,null,null,null,null,null,null,null,null,null,null,null,100,0,12350,null,"Turns around leap on measure border. There is more than one note going in the same direction before leap and one note going in the same direction after leap (allowed between harmonies with same root except I or I6 -> I64, allowed between I64 -> V)"]
[478,"Melody","Change of melodic direction around leap","No change of direction before the leap between measures: >1skip + 1skip","8ve",null,null,null,null,null,null,null,null,null,null,null,null,null,null,null,100,0,12350,null,"Turns around leap on measure border. There is more than one note going in the same direction before leap and one note going in the same direction after leap (allowed between harmonies with same root except I or I6 -> I64, allowed between I64 -> V)"]
[481,"Harmony","Perfect consonance","Consecutive 8ves or unisons","parallel",null,null,null,null,null,null,null,null,null,null,null,null,null,null,null,100,0]
[482,"Harmony","Perfect consonance","Consecutive 8ves or unisons","contrary",null,null,null,null,null,null,null,null,null,null,null,null,null,null,null,50,0,null,"6E",null,"Contrary octaves are possible in cadence"]
[484,"Harmony","Perfect consonance","Parallel 8ves / unisons: < measure apart","upbeat contrary",null,null,null,null,null,null,null,null,null,null,null,null,null,null,null,0,1,null,">4","Two same non-close perfect consonances in neighboring measures less than one measure and whole note length apart","Contrary movement between the two intervals, second interval is on upbeat, both notes of second interval do not start simultaneously"]
[485,"Harmony","Perfect consonance","Parallel 8ves / unisons: < measure apart","last contrary",null,null,null,null,null,null,null,null,null,null,null,null,null,null,null,0,1,null,">4","Two same non-close perfect consonances in neighboring measures less than one measure and whole note length apart","Contrary movement to last interval in counterpoint"]
[488,"Harmony","Perfect consonance","Parallel 8ves / unisons: < measure apart","non-chord",null,null,null,null,null,null,null,null,null,null,null,null,null,null,null,0,1,null,">4","Two same non-close perfect consonances in neighboring measures less than one measure and whole note length apart","One of intervals is created by non-chord tone or chord tone in melodic position, second interval is on upbeat"]
[490,"Harmony","Perfect consonance","Parallel 8ves / unisons: < measure apart","downbeat",null,null,null,null,null,null,null,null,null,null,null,null,null,null,null,100,0,null,">4","Two same non-close perfect consonances in neighboring measures less than one measure and whole note length apart","Second interval is on downbeat"]
[491,"Harmony","Perfect consonance","Parallel 8ves / unisons: < measure apart","sus harm",null,null,null,null,null,null,null,null,null,null,null,null,null,null,null,0,0,null,">4","Two same non-close perfect consonances in neighboring measures less than one measure and whole note length apart","Second interval is formed by harmonic suspension on downbeat"]
[492,"Harmony","Perfect consonance","Parallel 8ves / unisons: < measure apart","upbeat",null,null,null,null,null,null,null,null,null,null,null,null,null,null,null,0,1,null,">4","Two same non-close perfect consonances in neighboring measures less than one measure and whole note length apart","If other rules for second interval on upbeat did not apply (upbeat, not oblique)"]
[493,"Melody","Leaps","Abuse of disjunct motion: within 9 notes",">7 leaps",null,null,null,null,null,null,null,null,null,null,null,null,null,null,null,0,0,5]
[494,"Melody","Leaps","Abuse of disjunct motion: within 9 notes",">30 leaped",null,null,null,null,null,null,null,null,null,null,null,null,null,null,null,0,0,5,null,null,"Total leaps length more than AA notes:  3 is third, 4 is fourth and so on"]
[495,"Melody","Leaps","Abuse of disjunct motion: within 9 notes",">8 leaps",null,null,null,null,null,null,null,null,null,null,null,null,null,null,null,50,0,5]
[496,"Melody","Leaps","Abuse of disjunct motion: within 9 notes",">36 leaped",null,null,null,null,null,null,null,null,null,null,null,null,null,null,null,50,0,5,null,null,"Total leaps length more than AA notes:  3 is third, 4 is fourth and so on"]
[497,"Melody","Leaps","Abuse of disjunct motion: within 14 notes",">9 leaps",null,null,null,null,null,null,null,null,null,null,null,null,null,null,null,0,0,5]
[498,"Melody","Leaps","Abuse of disjunct motion: within 14 notes",">40 leaped",null,null,null,null,null,null,null,null,null,null,null,null,null,null,null,0,0,5,null,null,"Total leaps length more than AA notes:  3 is third, 4 is fourth and so on"]
[499,"Melody","Leaps","Abuse of disjunct motion: within 14 notes",">10 leaps",null,null,null,null,null,null,null,null,null,null,null,null,null,null,null,50,0,5]
[500,"Melody","Leaps","Abuse of disjunct motion: within 14 notes",">46 leaped",null,null,null,null,null,null,null,null,null,null,null,null,null,null,null,50,0,5,null,null,"Total leaps length more than AA notes:  3 is third, 4 is fourth and so on"]
[501,"Melody","Leaps","Consecutive leaps",4,null,null,null,null,null,null,null,null,null,null,null,null,null,null,null,50,0,5,null,"1x3rd ignored"]
[502,"Melody","Leaps","Consecutive leaps","more than 4",null,null,null,null,null,null,null,null,null,null,null,null,null,null,null,100,0,5,null,"1x3rd ignored"]
[503,"Melody","Leaps","Consecutive unidirectional leaps","Two 3rds",null,null,null,null,null,null,null,null,null,null,null,null,null,null,null,0,0,4510]
[504,"Melody","Leaps","Consecutive unidirectional leaps","Three 3rds",null,null,null,null,null,null,null,null,null,null,null,null,null,null,null,100,0,4510]
[505,"Melody","Leaps","Consecutive unidirectional leaps","Two >3rds",null,null,null,null,null,null,null,null,null,null,null,null,null,null,null,100,0,4510,null,null,"Two consecutive unidirectional leaps, while one of them is longer than 3rd"]
[506,"Melody","Change of melodic direction around leap","No change of direction before the leap between measures: >1skip + >1skip","3rd",null,null,null,null,null,null,null,null,null,null,null,null,null,null,null,50,0,12350,null,"Turns around leap on measure border. There is more than one note going in the same direction before leap and more than one note going in the same direction after leap (allowed between harmonies with same root except I or I6 -> I64, allowed between I64 -> V)"]
[507,"Melody","Change of melodic direction around leap","No change of direction before the leap between measures: >1skip + >1skip","4th",null,null,null,null,null,null,null,null,null,null,null,null,null,null,null,50,0,12350,null,"Turns around leap on measure border. There is more than one note going in the same direction before leap and more than one note going in the same direction after leap (allowed between harmonies with same root except I or I6 -> I64, allowed between I64 -> V)"]
[508,"Melody","Change of melodic direction around leap","No change of direction before the leap between measures: >1skip + >1skip","5th",null,null,null,null,null,null,null,null,null,null,null,null,null,null,null,100,0,12350,null,"Turns around leap on measure border. There is more than one note going in the same direction before leap and more than one note going in the same direction after leap (allowed between harmonies with same root except I or I6 -> I64, allowed between I64 -> V)"]
[509,"Melody","Change of melodic direction around leap","No change of direction before the leap between measures: >1skip + >1skip","6th",null,null,null,null,null,null,null,null,null,null,null,null,null,null,null,100,0,12350,null,"Turns around leap on measure border. There is more than one note going in the same direction before leap and more than one note going in the same direction after leap (allowed between harmonies with same root except I or I6 -> I64, allowed between I64 -> V)"]
[510,"Melody","Change of melodic direction around leap","No change of direction before the leap between measures: >1skip + >1skip","8ve",null,null,null,null,null,null,null,null,null,null,null,null,null,null,null,100,0,12350,null,"Turns around leap on measure border. There is more than one note going in the same direction before leap and more than one note going in the same direction after leap (allowed between harmonies with same root except I or I6 -> I64, allowed between I64 -> V)"]
[514,"Rhythm","Rhythm","Wrong note value for this species","/value",null,null,null,null,null,null,null,null,null,null,null,null,null,null,null,50,0,null,null,"Please see link to table with allowed note values near this mistake"]
[515,"Rhythm","Rhythm","Wrong positioning of note for this species","/position",null,null,null,null,null,null,null,null,null,null,null,null,null,null,null,50,0,12340,null,"Please see link to table with allowed positionings of notes near this mistake"]
[516,"Rhythm","Repeats and ties","Note repeat",":inside measure",null,null,null,null,null,null,null,null,null,null,null,null,null,null,null,50,0]
[517,"Rhythm","Rhythm","Misuse of rest","rest inside",null,null,null,null,null,null,null,null,null,null,null,null,null,null,null,50,0,null,null,null,"Rest inside counterpoint - not before first note"]
[518,"Harmony","Voice motion","Voice crossing is too long","> 1.5 measures",null,null,null,null,null,null,null,null,null,null,null,null,null,null,null,0,0,null,">4"]
[519,"Harmony","Voice motion","Voice crossing is too long","> 2.5 measures",null,null,null,null,null,null,null,null,null,null,null,null,null,null,null,50,0,null,">4"]
[520,"Harmony","Voice motion","Voice crossing between non-adjacent voices","/non-adjacent",null,null,null,null,null,null,null,null,null,null,null,null,null,null,null,100,0]
[521,"Melody","Melodic minor","Note is not part of the mode","/wrong alteration",null,null,null,null,null,null,null,null,null,null,null,null,null,null,null,100,0,null,null,null,"Used alterations are not part of current mode (major I#, II# or VI# notes)."]
[522,"Melody","Range","Out of vocal range","/out of range",null,null,null,null,null,null,null,null,null,null,null,null,null,null,null,50,0,null,null,null,"Notes are too high or too low for vocal range specified for this voice"]
[523,"Melody","Range","Wrong order of vocal ranges","/above higher",null,null,null,null,null,null,null,null,null,null,null,null,null,null,null,50,0,null,null,null,"This vocal range should not be above higher vocal range"]
[524,"Melody","Range","Imbalance between vocal ranges",">7 quarters",null,null,null,null,null,null,null,null,null,null,null,null,null,null,null,50,0,null,null,"One voice is in its highest third of range, while the other voice is in its lowest third range for AA quarters"]
[525,"Rhythm","Rhythm","Wrong time signature for this species","/measure len",null,null,null,null,null,null,null,null,null,null,null,null,null,null,null,50,0]
[526,"Melody","Range","Imbalance between vocal ranges",">12 quarters",null,null,null,null,null,null,null,null,null,null,null,null,null,null,null,100,0,null,null,"One voice is in its highest third of range, while the other voice is in its lowest third range for AA quarters"]
[527,"Rhythm","Rhythm","Misuse of rest","late entrance",null,null,null,null,null,null,null,null,null,null,null,null,null,null,null,50,0,null,null,"This rule is ignored if there is no cantus firmus","Voice is entering too late. For species 2-5, one or two voices should enter in each measure"]
[530,"Rhythm","Rhythm","Simultaneous entries of voices","/simultaneous",null,null,null,null,null,null,null,null,null,null,null,null,null,null,null,50,0,null,null,"This rule is ignored if there is no cantus firmus"]
[531,"Harmony","Border","Non-permitted last harmony","not T in root position",null,null,null,null,null,null,null,null,null,null,null,null,null,null,null,50,0]
[532,"Harmony","Border","Non-permitted first note","V",null,null,null,null,null,null,null,null,null,null,null,null,null,null,null,0,-1]
[533,"Harmony","Border","Non-permitted first note","III syncope",null,null,null,null,null,null,null,null,null,null,null,null,null,null,null,0,-1]
[534,"Harmony","Border","Non-permitted first note","III",null,null,null,null,null,null,null,null,null,null,null,null,null,null,null,0,0]
[535,"Harmony","Border","Non-permitted first note","Other",null,null,null,null,null,null,null,null,null,null,null,null,null,null,null,0,0]
[536,"Harmony","Border","Non-permitted last note","V",null,null,null,null,null,null,null,null,null,null,null,null,null,null,null,0,-1,null,"N","For this rule E voice means highest voice, B means lowest voice, N means non-outer voice"]
[537,"Harmony","Border","Non-permitted last note","III",null,null,null,null,null,null,null,null,null,null,null,null,null,null,null,0,1,null,"N","For this rule E voice means highest voice, B means lowest voice, N means non-outer voice"]
[538,"Harmony","Border","Non-permitted last note","Other",null,null,null,null,null,null,null,null,null,null,null,null,null,null,null,0,0,null,"N","For this rule E voice means highest voice, B means lowest voice, N means non-outer voice"]
[541,"Harmony","Voice motion","Voice crossing is prohibited","first measure",null,null,null,null,null,null,null,null,null,null,null,null,null,null,null,0,0,null,">4"]
[542,"Harmony","Voice motion","Voice crossing is prohibited","last measure",null,null,null,null,null,null,null,null,null,null,null,null,null,null,null,0,1,null,">4"]
[543,"Harmony","Voice motion","Voice crossing is prohibited","any",null,null,null,null,null,null,null,null,null,null,null,null,null,null,null,100,0,null,"<3"]
[544,"Harmony","Voice motion","2nd interval during voice crossing","/2nd interval",null,null,null,null,null,null,null,null,null,null,null,null,null,null,null,0,0,null,null,null,"Second interval at crossing"]
[545,"Harmony","Voice motion","Consecutive 2nd intervals during voice crossing","/Two 2nd intervals",null,null,null,null,null,null,null,null,null,null,null,null,null,null,null,50,0,null,null,"Two consecutive harmonic 2nd intervals","Second interval before and at crossing"]
[546,"Harmony","Voice motion","Similar motion with crossing voices",":one voice leaps",null,null,null,null,null,null,null,null,null,null,null,null,null,null,null,0,0,null,null,null,"Direct motion to crossing if one of voices leaps"]
[547,"Harmony","Voice motion","Similar motion with crossing voices",":both voices leap",null,null,null,null,null,null,null,null,null,null,null,null,null,null,null,50,0,null,null,null,"Direct motion to crossing if both voices leap"]
[548,"Harmony","Voice motion","Voice overlapping","non-adjacent",null,null,null,null,null,null,null,null,null,null,null,null,null,null,null,100,0,null,">4"]
[549,"Rhythm","Rhythm","Identical rhythm in two parts","/same",null,null,null,null,null,null,null,null,null,null,null,null,null,null,null,0,1,null,null,null,"One measure has same rhythm in two voices in species 5"]
[550,"Harmony","Voice motion","Parallel motion in all parts","two times",null,null,null,null,null,null,null,null,null,null,null,null,null,null,null,50,0,null,">2"]
[551,"Harmony","Dissonance","Misuse of a non-chord tone",":first note",null,null,null,null,null,null,null,null,null,null,null,null,null,null,null,100,0]
[555,"Harmony","Harmony","Convoluted harmony","/convoluted",null,null,null,null,null,null,null,null,null,null,null,null,null,null,null,100,0,null,null,"Cannot detect harmony"]
[557,"Rhythm","Repeats and ties","Notes repeat in all parts","/multivoice",null,null,null,null,null,null,null,null,null,null,null,null,null,null,null,50,0,1]
[558,"Harmony","Harmony","Ambiguous harmony","/ambiguous",null,null,null,null,null,null,null,null,null,null,null,null,null,null,null,100,0,null,null,"Chord should have at least one chord tone starting on the first beat of this chord"]
[559,"Harmony","Harmony","Incomplete harmony","any - no 3rd",null,null,null,null,null,null,null,null,null,null,null,null,null,null,null,50,0,null,null,null,"Starting from 3 voices chord should have (tonic and 3rd) or (5th and 3rd) on first beat or suspension resolution or PDD resolution note"]
[198,"Harmony","Perfect consonance","Doubling of leading-tone","start of harmony",null,null,null,null,null,null,null,null,null,null,null,null,null,null,null,0,0,null,">4N",null,"Leading tone at start of harmony is allowed only if it is resolved at the end of measure."]
[135,"Harmony","Dissonance","Harmonic 4th with bass","first beat",null,null,null,null,null,null,null,null,null,null,null,null,null,null,null,100,0,null,null,"The 5th degree of a minor or major triad suggests a 6/4 chord (second inversion chord) when placed in the bass","On the first beat of harmony"]
[150,"Harmony","Dissonance","Harmonic 4th with bass","long",null,null,null,null,null,null,null,null,null,null,null,null,null,null,null,50,0,null,null,"The 5th degree of a minor or major triad suggests a 6/4 chord (second inversion chord) when placed in the bass","Longer than other notes in this measure in bass"]
[151,"Harmony","Dissonance","Harmonic 4th with bass","lowest",null,null,null,null,null,null,null,null,null,null,null,null,null,null,null,100,0,null,null,"The 5th degree of a minor or major triad suggests a 6/4 chord (second inversion chord) when placed in the bass","When this note is lowest in bass in this measure"]
[289,"Harmony","Suspension","Suspension prepared by 4th with bass","/4th",null,null,null,null,null,null,null,null,null,null,null,null,null,null,null,50,0,null,2]

{"sheet":"Shapes","index":2,"n_rows":21,"n_cols":3,"rows_kept":21,"cut":false,"hidden":false,"merged":[]}
[null,"Text","ABCjs alternative"]
["0. Just flag number","yes"]
["1. Harmony","no"]
["2. Interval","no"]
["3. Vertical brackets","no","no color"]
["4. Volta repeat","yes"]
["5. Slurs","no","no color"]
["6. Phrasing slurs","no"]
["7. Glissando","yes (if neighboring notes)"]
["8. Analysis brackets","yes"]
["9. Trills","yes","issue created"]
["10. TextSpanner","yes"]
["11. Ottava bracket","yes"]
["12. Pedal bracket","yes"]
["13. Note name","no"]
["14. Staccato"]
["15. Staccattissimo"]
["16. Note color","no"]
["17. Petrucci notehead"]
["18. Cross on a stem"]
["19. Circle around notehead","no","muted note (x)"]

{"sheet":"Temp","index":3,"n_rows":16,"n_cols":23,"rows_kept":16,"cut":false,"hidden":false,"merged":[]}
["Rid","Class","Group","Rule","Subrule","VIZ","VI","V2","VT","FQ","CF","GFP","IFP","DEU","MEI","ER","UE","R","Severity","Flag","GComment","Comment","Set"]
[3,"Melody","Leaps","Many leaps within 9 notes",">8 leaps","10",null,null,"!srn!",{"$f":"VLOOKUP($A2,#REF!, 2,0)","v":{"$error":"#REF!"}},{"$f":"VLOOKUP($A2,#REF!, 3,0)","v":{"$error":"#REF!"}},null,null,null,1,"311",null,null,60,0,null,null,1]
[25,"Melody","Leaps","Many leaps within 9 notes",">30 notes","10",null,null,"Many leaps",{"$f":"VLOOKUP($A3,#REF!, 2,0)","v":{"$error":"#REF!"}},{"$f":"VLOOKUP($A3,#REF!, 3,0)","v":{"$error":"#REF!"}},null,null,null,1,"312",null,null,60,0,null,"Total leaps length more than X notes:  3 is third, 4 is fourth and so on",1]
[202,"Melody","Leaps","Many leaps within 15 notes",">12 leaps","10",null,null,"!srn!",{"$f":"VLOOKUP($A4,#REF!, 2,0)","v":{"$error":"#REF!"}},{"$f":"VLOOKUP($A4,#REF!, 3,0)","v":{"$error":"#REF!"}},null,null,null,1,"313",null,null,60,0,null,null,1]
[273,"Melody","Leaps","Many leaps within 15 notes",">42 notes","10",null,null,"Many leaps",{"$f":"VLOOKUP($A5,#REF!, 2,0)","v":{"$error":"#REF!"}},{"$f":"VLOOKUP($A5,#REF!, 3,0)","v":{"$error":"#REF!"}},null,null,null,1,"314",null,null,60,0,null,"Total leaps length more than X notes:  3 is third, 4 is fourth and so on",1]
[302,"Melody","Stepwise","Stepwise motion",">14 any direction",10,null,null,"Long stepwise",{"$f":"VLOOKUP($A6,#REF!, 2,0)","v":{"$error":"#REF!"}},{"$f":"VLOOKUP($A6,#REF!, 3,0)","v":{"$error":"#REF!"}},null,null,null,null,null,null,null,60,0,"There are more than X notes going stepwize in the same direction in this counterpoint","Stepwise motion more than X notes in any direction",1]
[303,"Melody","Stepwise","Stepwise motion",">7 one direction",10,null,null,"Long stepwise",{"$f":"VLOOKUP($A7,#REF!, 2,0)","v":{"$error":"#REF!"}},{"$f":"VLOOKUP($A7,#REF!, 3,0)","v":{"$error":"#REF!"}},null,null,null,null,null,null,null,60,0,"There are more than X notes going stepwize in the same direction in this counterpoint","Stepwise motion more than X notes in one direction",1]
[311,"Melody","Leaps","Many leaps within 9 notes",">5 leaps","10",null,null,"!srn!",{"$f":"VLOOKUP($A8,#REF!, 2,0)","v":{"$error":"#REF!"}},{"$f":"VLOOKUP($A8,#REF!, 3,0)","v":{"$error":"#REF!"}},null,1,null,1,null,null,null,0,0,null,null,1]
[312,"Melody","Leaps","Many leaps within 9 notes",">18 notes","10",null,null,"Many leaps",{"$f":"VLOOKUP($A9,#REF!, 2,0)","v":{"$error":"#REF!"}},{"$f":"VLOOKUP($A9,#REF!, 3,0)","v":{"$error":"#REF!"}},null,1,null,1,null,null,null,0,0,null,"Total leaps length more than X notes:  3 is third, 4 is fourth and so on",1]
[313,"Melody","Leaps","Many leaps within 15 notes",">7 leaps","10",null,null,"!srn!",{"$f":"VLOOKUP($A10,#REF!, 2,0)","v":{"$error":"#REF!"}},{"$f":"VLOOKUP($A10,#REF!, 3,0)","v":{"$error":"#REF!"}},null,1,null,1,null,null,null,0,0,null,null,1]
[314,"Melody","Leaps","Many leaps within 15 notes",">26 notes","10",null,null,"Many leaps",{"$f":"VLOOKUP($A11,#REF!, 2,0)","v":{"$error":"#REF!"}},{"$f":"VLOOKUP($A11,#REF!, 3,0)","v":{"$error":"#REF!"}},null,1,null,1,null,null,null,0,0,null,"Total leaps length more than X notes:  3 is third, 4 is fourth and so on",1]
[6,"Melody","Leaps","Consecutive unidirectional 3rds","without 6/8","10",null,null,"2 x 3rds",{"$f":"VLOOKUP($A12,#REF!, 2,0)","v":{"$error":"#REF!"}},{"$f":"VLOOKUP($A12,#REF!, 3,0)","v":{"$error":"#REF!"}},1,null,null,null,null,null,null,60,0,"There are two immediately adjacent 3rd leaps going in the same direction","There is no 6th or 8va leap before in an opposite direction",1]
[27,"Melody","Leaps","Consecutive unidirectional leaps","Sum >5th","10",null,null,"Leaps",{"$f":"VLOOKUP($A13,#REF!, 2,0)","v":{"$error":"#REF!"}},{"$f":"VLOOKUP($A13,#REF!, 3,0)","v":{"$error":"#REF!"}},null,null,null,null,null,null,null,100,0,"There are two immediately adjacent leaps going in the same direction",null,1]
[28,"Melody","Leaps","Consecutive unidirectional 3rds","after 6/8","10",null,null,"2 x 3rds",{"$f":"VLOOKUP($A14,#REF!, 2,0)","v":{"$error":"#REF!"}},{"$f":"VLOOKUP($A14,#REF!, 3,0)","v":{"$error":"#REF!"}},1,null,null,null,null,null,null,0,-1,"There are two immediately adjacent 3rd leaps going in the same direction","After 6th or 8va leap in an opposite direction",1]
[70,"Melody","Leaps","Consecutive leaps: 1x3rd ignored","3","10",null,null,"Consecutive leaps",{"$f":"VLOOKUP($A15,#REF!, 2,0)","v":{"$error":"#REF!"}},{"$f":"VLOOKUP($A15,#REF!, 3,0)","v":{"$error":"#REF!"}},null,null,null,1,null,null,null,60,0,"There are more than X leaps. Several Y specified 3rd leaps are allowed and not counted. Not idiomatic for voice.",null,1]
[71,"Melody","Leaps","Consecutive leaps: 1x3rd ignored",">3","10",null,null,"Consecutive leaps",{"$f":"VLOOKUP($A16,#REF!, 2,0)","v":{"$error":"#REF!"}},{"$f":"VLOOKUP($A16,#REF!, 3,0)","v":{"$error":"#REF!"}},null,null,null,1,"70",null,null,100,0,"There are more than X leaps. Several Y specified 3rd leaps are allowed and not counted. Not idiomatic for voice.",null,1]

{"sheet":"viz","index":4,"n_rows":59,"n_cols":4,"rows_kept":59,"cut":false,"hidden":false,"merged":[]}
["Rule group","Shape","Text in staff","Shegolev"]
["Compensated leap","Slur","-"]
["Uncompensated leap","Slur","-"]
["Leap melody direction change","Slur","-"]
["Leap back","Slur","-"]
["Leap size","Slur","-"]
["Many leaps","Text spanner","Many leaps","Bracket"]
["2 consecutive 3rds","Text spanner","2 x 3rds","Bracket"]
["Long stepwize motion","Text spanner","Long stepwise","Bracket"]
["Multiple culminations","-","-"]
["Repeats","Vertical bracket","Repeat"]
["Many tonic notes / chords","Trill","Many tonics"]
["Stagnation, constrained local range, no development","Trill","Stagnation"]
["Letter repeat/miss","Trill","Repeat/miss"]
["Melodic tritone","Interval text","tri"]
["Skipped notes","-","-"]
["Voice range","-","-"]
["Total range","-","-"]
["Interval between voices","Pedal bracket","int >16th"]
["Harmonic mistakes","Harmony text","-"]
["First/last intervals","Interval text","-"]
["Unaltered VII before Im","Bracket","VII before Im","Text spanner"]
["Unaltered VII 10 after VII#","Bracket","VII after VII#","Text spanner"]
["VII near VI#","Bracket","VII near VI#","Text spanner"]
["VI# without VII#","-","-"]
["Leap to VI#","Slur","-"]
["Altered neighbor","Bracket","VI# (or VII#)","Text spanner"]
["Altered far neighbor","Bracket","VI# (or VII#)","Text spanner"]
["False cross relation","-","-"]
["Altered harmonic interval","Interval text","-"]
["Duplicate LT","Interval text","-"]
["PCo long culmination","Interval text","-"]
["Adjacent Pco","Glis","-"]
["PCo <whole apart","Glis","-"]
["Virtual 4th","Pedal bracket","sounds 6/4"]
["Direct movement to Pco","Glis","-"]
["Suspension resolution (including insertion)","Pedal bracket","sus"]
["Harmonic dissonance","Interval text","-"]
["Long parallel imperfect consonances","Trill","parall"]
["Missing/uneven/long starting pause","-","-"]
["Unison downbeat","Interval text","-"]
["Unison near 2nd","Bracket + interval text","-"]
["No LT in penultimate measure","-","-"]
["Allowed suspension in sp2","-","-"]
["Slurs in cantus, excessive slurs in sp1/2/3/5","-","-"]
["Missing slurs in sp4/5","-","-"]
["Voices overlap","Text spanner","ovl"]
["1/2 with dot upbeat","Ottava bracket","1/2. upbeat"]
["1/4, 1/8 syncope","-","-"]
["Whole note inside counterpoint","-","-"]
["Uneven starting rhythm","Ottava bracket","Uneven"]
["Rhythm repeat","Vertical bracket","-"]
["1/8 downbeat","-","-"]
["1/8 leap","Slur","-"]
["1/2 after 1/4","Ottava bracket","1/2 upbeat"]
["Note too long","-","-"]
["Last note is not whole","-","-"]
["Wrong suspension rhythm (1/4 or 1/2 with dot)","-","-"]
["Many notes in measure","Ottava bracket","Many notes"]

{"sheet":"viz2","index":5,"n_rows":17,"n_cols":2,"rows_kept":17,"cut":false,"hidden":false,"merged":[]}
[]
[]
["Названия строк","Количество по полю Rule group"]
["-",13]
["Ottava bracket",7]
["Slur",7]
["Interval text",6]
["Bracket",6]
["Pedal bracket",4]
["Trill",3]
["Glis",3]
["Text spanner",3]
["Vertical bracket",2]
["Bracket + interval text",1]
["Volta",1]
["Harmony text",1]
["Общий итог",57]

{"sheet":"Missing","index":6,"n_rows":97,"n_cols":1,"rows_kept":97,"cut":false,"hidden":false,"merged":[]}
["Rid"]
[4]
[5]
[6]
[7]
[9]
[11]
[13]
[14]
[25]
[26]
[27]
[28]
[32]
[33]
[34]
[35]
[37]
[38]
[40]
[42]
[43]
[44]
[45]
[46]
[49]
[50]
[51]
[52]
[53]
[54]
[55]
[56]
[59]
[60]
[61]
[62]
[63]
[64]
[65]
[66]
[75]
[80]
[81]
[82]
[86]
[87]
[96]
[98]
[171]
[290]
[320]
[322]
[323]
[332]
[333]
[334]
[347]
[356]
[357]
[358]
[359]
[362]
[363]
[364]
[367]
[370]
[373]
[374]
[380]
[381]
[382]
[384]
[399]
[400]
[401]
[409]
[410]
[426]
[479]
[480]
[483]
[486]
[487]
[489]
[511]
[512]
[513]
[528]
[529]
[539]
[540]
[552]
[553]
[554]
[556]
[560]

{"sheet":"Colors","index":7,"n_rows":0,"n_cols":0,"rows_kept":0,"cut":false,"hidden":false,"merged":[]}

{"sheet":"vp","index":8,"n_rows":11,"n_cols":3,"rows_kept":11,"cut":false,"hidden":false,"merged":[]}
["E","B","N"]
["H+B","nH+B","nB"]
["Extreme","With bass","Non-bass"]
[1,1,1]
[2,2,2]
[3,3,3]
[4,4,4]
[5,5,5]
[6,6,6]
[7,7,7]
[8,8,8]

{"sheet":"Dis","index":9,"n_rows":12,"n_cols":13,"rows_kept":12,"cut":false,"hidden":false,"merged":[[0,5,0,8],[0,1,0,4],[0,9,0,12]]}
["Диссонансы за исключениям задержаний и PDD","Секунда / септима / нона",null,null,null,"Кварта / тритон с басом",null,null,null,"Кварта / тритон без баса"]
[null,"Сильн","Прям","Прот","Косв","Сильн","Прям","Прот","Косв","Сильн","Прям","Прот","Косв"]
["Между двумя аккордовыми звуками, вступление скачками"]
["Между двумя аккордовыми звуками, вступление скачком"]
["Между двумя аккордовыми звуками, вступление поступенно"]
["Между аккордовым и неаккордовым звуками, вступление скачками"]
["Между аккордовым и неаккордовым звуками, вступление скачком к аккордовому"]
["Между аккордовым и неаккордовым звуками, вступление скачком к неаккордовому"]
["Между аккордовым и неаккордовым звуками, вступление поступенно"]
["Между двумя неаккордовыми звуками, вступление скачками"]
["Между двумя неаккордовыми звуками, вступление скачком"]
["Между двумя неаккордовыми звуками, вступление поступенно"]

{"sheet":"Ivls","index":10,"n_rows":13,"n_cols":12,"rows_kept":13,"cut":false,"hidden":false,"merged":[[1,3,1,11],[1,0,1,2],[2,0,3,2]]}
["LN1","LN2","LN3",9,11,0,2,4,5,6,7,8]
["Lower note",null,null,"Upper melodic minor note"]
[null,null,null,"I","II","III","IV","V","VI","VI#","VII","VII#"]
[null,null,null,"A","B","C","D","E","F","F#","G","G#"]
[9,"I","A","1|8","M2|M9","m3","4","5","m6","M6","m7","M7"]
[11,"II","B","m7","1|8","m2|m9","m3","4","dim5","5","m6","M6"]
[0,"III","C","M6","M7","1|8","M2|M9","m3","4","aug4","5","aug5"]
[2,"IV","D","5","M6","m7","1|8","M2|M9","m3","M3","4","aug4"]
[4,"V","E","4","5","m6","m7","1|8","m2|m9","M2|M9","m3","M3"]
[5,"VI","F","M3","aug4","5","M6","M7","1|8","aug1|aug8","M2|M9","aug2|aug9"]
[6,"VI#","F#","m3","4","dim5","m6","m7","M7","1|8","m2|m9","M2|M9"]
[7,"VII","G","M2|M9","M3","4","5","M6","m7","M7","1|8","aug1|aug8"]
[8,"VII#","G#","m2|m9","m3","dim4","dim5","m6","dim7","m7","dim8","1|8"]